Workbook

Sheet information
C7: Austrian Professional Hotel Association
C11: Questionnaire Mystery Guest check
C12: (information)
C20: Working document, 13.10.2010
C27: This working document allows you to select the suitable questionnaire for each offer – regardless of the concept and positioning of the business to be checked.
C36: Contact details for further information:
C37: Matthias Koch / Katrin Muhr / Nina Pavicevic / Andrea Gloser
C38: Fachverband Hotellerie
C39: Wiedner Hauptstraße 63
C40: 1045 Vienna / Austria
C41: T: +43(0)590900/3554 F: +43(0)590900/3568
C42: E: hotelsterne@wko.at
C45: Vienna, 13.10.2010

Sheet alternatives
C7: Austrian Professional Hotel Association
C11: Questionnaire Mystery Guest check
C12: (alternatives)
C20: Working document, 13.10.2010
C29: alternatives | D29: no. of criteria | E29: factor
C30: no add-on | D30: 379 | E30: 0.2639
C32: incl. 1 module | D32: 402 | E32: 0.2488
C33: incl. 2 modules | D33: 425 | E33: 0.2353
C34: incl. 3 modules/complete | D34: 448 | E34: 0.2232
C42: Contact details for further information:
C43: Matthias Koch / Katrin Muhr / Nina Pavicevic / Andrea Gloser
C44: Fachverband Hotellerie
C45: Wiedner Hauptstraße 63
C46: 1045 Vienna / Austria
C47: T: +43(0)590900/3554 F: +43(0)590900/3568
C48: E: hotelsterne@wko.at
C51: Vienna, 13.10.2010

Sheet complete
C7: Austrian Professional Hotel Association
C11: Questionnaire Mystery Guest check
C18: Working document, 13.10.2010
C24: This is a list of the necessary test criteria for companies which want to carry out a mystery test within the scope of the Austrian hotel classification. The steering commission or the Austrian Professional Hotel Association, respectively, will make the final decision about the company's listing after checking the prerequisites.
C26: positively met criteria | D26: 1
C27: negatively met criteria | D27: 0
C30: 1. Website
E31: Comments
A32: 1 | B32: 1 | C32: Clear website address | D32: 1
A33: 2 | B33: 2 | C33: All links working | D33: 1
A34: 3 | B34: 3 | C34: Clear arrangement | D34: 1
A35: 4 | B35: 4 | C35: Search function | D35: 1
A36: 5 | B36: 5 | C36: Integrated guest feedback | D36: 1
A37: 6 | B37: 6 | C37: Typing, spelling and grammar errors | D37: 1
A38: 7 | B38: 7 | C38: Informative, realistic presence with hotel pictures | D38: 1
A39: 8 | B39: 8 | C39: Up-to-date | D39: 1
A40: 9 | B40: 9 | C40: Legal information | D40: 1
A41: 10 | B41: 10 | C41: English translation | D41: 1
A42: 11 | B42: 11 | C42: Contact details (e-mail, telephone, etc.) | D42: 1
A43: 12 | B43: 12 | C43: Online booking on own website | D43: 1
A44: 13 | B44: 13 | C44: Directions / Map | D44: 1
A45: 14 | B45: 14 | C45: General Terms and Conditions or cancellation conditions available | D45: 1
C46: Number of criteria met | D46: =SUM(D32:D45) -> 14
C47: Multiplication of the number of criteria met by | D47: =D768 -> 0.2232142857
C48: Maximum total | D48: =D47*B45 -> 3.125
C49: Points total | D49: =D46*D47 -> 3.125
C51: Comments
C53: 2. E-mail and mail
C55: Response to your e-mail request, | E55: Comments
A56: 15 | B56: 1 | C56: Within … hours of the request (3*S - 12; 4*S - 8; 5*/5*S - 4) | D56: 1
A57: 16 | B57: 2 | C57: Quality (writing style, choice of words, correct form of address, spelling) | D57: 1
A58: 17 | B58: 3 | C58: Information content (e.g. additional offers) | D58: 1
A59: 18 | B59: 4 | C59: Individual processing | D59: 1
A60: 19 | B60: 5 | C60: In case of an offer: details about the cancellation conditions | D60: 1
C64: Reservation confirmation (e-mail, fax) as as response to your booking | E64: Comments
A65: 20 | B65: 6 | C65: Within … hours of the reservation (3*S - 24; 4*S - 12; 5*/5*S - 8) | D65: 1
A66: 21 | B66: 7 | C66: Quality (writing style, choice of words, correct form of address, spelling) | D66: 1
A67: 22 | B67: 8 | C67: Information content (including the current directions / map) | D67: 1
A68: 23 | B68: 9 | C68: Information about the cancellation conditions | D68: 1
C72: Documents sent by post | E72: Comments
A73: 24 | B73: 10 | C73: Delivery within 3 working days | D73: 1
A74: 25 | B74: 11 | C74: Cover letter | D74: 1
A75: 26 | B75: 12 | C75: Quality (writing style, choice of words, correct form of address, spelling) | D75: 1
A76: 27 | B76: 13 | C76: Information content (e.g. additional offers), | D76: 1
A77: 28 | B77: 14 | C77: Individual processing | D77: 1
A78: 29 | B78: 15 | C78: Corresponding qualitative documents and leaflets | D78: 1
C79: Number of criteria met | D79: =SUM(D56:D78) -> 15
C80: Multiplication of the number of criteria met by | D80: =D768 -> 0.2232142857
C81: Maximum total | D81: =D80*B78 -> 3.348214286
C82: Points total | D82: =D80*D79 -> 3.348214286
C84: Comments
C87: 3. Telephone
E88: Comments
A89: 30 | B89: 1 | C89: Waiting time (3*S - 1 min.; 4*S - 30 seconds; 5*/5*S - 15 seconds) | D89: 1
A90: 31 | B90: 2 | C90: Text or sound recordings during the waiting time | D90: 1
A91: 32 | B91: 3 | C91: Cordiality | D91: 1
A92: 33 | B92: 4 | C92: Clear voice and pronounciation | D92: 1
A93: 34 | B93: 5 | C93: Addressed by name | D93: 1
A94: 35 | B94: 6 | C94: All data compiled (e.g. address, telephone, e-mail request) | D94: 1
A95: 36 | B95: 7 | C95: Professional competency | D95: 1
A96: 37 | B96: 8 | C96: Arrival and departure dates repeated and confirmed | D96: 1
A97: 38 | B97: 9 | C97: Information about categories | D97: 1
A98: 39 | B98: 10 | C98: Information about prices | D98: 1
A99: 40 | B99: 11 | C99: Information about forms of payment | D99: 1
A100: 41 | B100: 12 | C100: Information about services | D100: 1
A101: 42 | B101: 13 | C101: Information about check-in times | D101: 1
A102: 43 | B102: 14 | C102: Information about additional offers | D102: 1
A103: 44 | B103: 15 | C103: Arrival directions | D103: 1
A104: 45 | B104: 16 | C104: Offer of a provisional booking | D104: 1
A105: 46 | B105: 17 | C105: Reference to the cancellation conditions | D105: 1
A106: 47 | B106: 18 | C106: Friendly goodbye and thanks | D106: 1
C107: Number of criteria met | D107: =SUM(D89:D106) -> 18
C108: Multiplication of the number of criteria met by | D108: =D768 -> 0.2232142857
C109: Maximum total | D109: =D108*B106 -> 4.017857143
C110: Points total | D110: =D108*D107 -> 4.017857143
C112: Comments
C115: 4. Arrival and outdoor facilities
E116: Comments
A117: 48 | B117: 1 | C117: Easy to find (e.g. signposted) | D117: 1
A118: 49 | B118: 2 | C118: Access options | D118: 1
A119: 50 | B119: 3 | C119: Parking spaces | D119: 1
A120: 51 | B120: 4 | C120: Garage parking spaces | D120: 1
A121: 52 | B121: 5 | C121: Lighting | D121: 1
A122: 53 | B122: 6 | C122: Luggage service | D122: 1
A123: 54 | B123: 7 | C123: Easy orientation | D123: 1
A124: 55 | B124: 8 | C124: Cleanliness and condition | D124: 1
A125: 56 | B125: 9 | C125: Parking service (e.g. doorman, valet) | D125: 1
C126: Number of criteria met | D126: =SUM(D117:D125) -> 9
C127: Multiplication of the number of criteria met by | D127: =D768 -> 0.2232142857
C128: Maximum total | D128: =D127*B125 -> 2.008928571
C129: Points total | D129: =D127*D126 -> 2.008928571
C131: Comments
C134: 5. Check-in
C136: Reception | E136: Comments
A137: 57 | B137: 1 | C137: Room climate (odour) | D137: 1
A138: 58 | B138: 2 | C138: Room temperature | D138: 1
A139: 59 | B139: 3 | C139: Sufficient lighting | D139: 1
A140: 60 | B140: 4 | C140: Ambience/atmosphere | D140: 1
A141: 61 | B141: 5 | C141: Furniture of an appropriate quality | D141: 1
A142: 62 | B142: 6 | C142: Clean and tidy | D142: 1
A143: 63 | B143: 7 | C143: Matching decorations | D143: 1
A144: 64 | B144: 8 | C144: Generous seating area for guests | D144: 1
A145: 65 | B145: 9 | C145: Appearance of the check-in area (front office - clean and tidy) | D145: 1
C149: Front office staff | E149: Comments
A150: 66 | B150: 10 | C150: Attendance | D150: 1
A151: 67 | B151: 11 | C151: Greeting (e.g. welcome drink) | D151: 1
A152: 68 | B152: 12 | C152: Cordiality and friendliness | D152: 1
A153: 69 | B153: 13 | C153: Appearance of the employees (e.g. uniform, name tag) | D153: 1
A154: 70 | B154: 14 | C154: Professional competency | D154: 1
A155: 71 | B155: 15 | C155: Knowledge of foreign languages | D155: 1
A156: 72 | B156: 16 | C156: Attentiveness | D156: 1
A157: 73 | B157: 17 | C157: Attention to detail | D157: 1
A158: 74 | B158: 18 | C158: Efficiency (speed and flexibility) | D158: 1
A159: 75 | B159: 19 | C159: Readiness to help | D159: 1
A160: 76 | B160: 20 | C160: Clear, easy to understand pronounciation | D160: 1
A161: 77 | B161: 21 | C161: Guest addressed by name | D161: 1
A162: 78 | B162: 22 | C162: Pre-prepared registration form | D162: 1
A163: 79 | B163: 23 | C163: Luggage service offered | D163: 1
A164: 80 | B164: 24 | C164: Offer of escorting to the room | D164: 1
A165: 81 | B165: 25 | C165: General site information offered or provided | D165: 1
A166: 82 | B166: 26 | C166: Pleasant stay wished | D166: 1
C170: Escort to the room | E170: Comments
A171: 83 | B171: 27 | C171: Appearance of the employee | D171: 1
A172: 84 | B172: 28 | C172: Friendliness, conversation | D172: 1
C176: Room information | E176: Comments
A177: 85 | B177: 29 | C177: Indication of the main switch (for power in the room) | D177: 1
A178: 86 | B178: 30 | C178: Indication of the heating or air-conditioning | D178: 1
A179: 87 | B179: 31 | C179: Telephone (written information sufficient) | D179: 1
A180: 88 | B180: 32 | C180: Telephone book or numbers (for room service) - written information sufficient | D180: 1
A181: 89 | B181: 33 | C181: Minibar (written information sufficient) | D181: 1
A182: 90 | B182: 34 | C182: Safe (written information sufficient) | D182: 1
A183: 91 | B183: 35 | C183: Laundry service (written information sufficient) | D183: 1
A184: 92 | B184: 36 | C184: Ironing service (written information sufficient) | D184: 1
A185: 93 | B185: 37 | C185: Opening hours of the restaurant and bar (written information sufficient) | D185: 1
A186: 94 | B186: 38 | C186: Breakfast times (written information sufficient) | D186: 1
A187: 95 | B187: 39 | C187: Reception available 24 hours and attended for … hours (3*S - 14; 4*S - 18; 5*/5*S - 24) | D187: 1
C188: Number of criteria met | D188: =SUM(D137:D187) -> 39
C189: Multiplication of the number of criteria met by | D189: =D768 -> 0.2232142857
C190: Maximum total | D190: =D189*B187 -> 8.705357143
C191: Points total | D191: =D189*D188 -> 8.705357143
C193: Comments
C196: 6. Rooms
C198: First impression and general character | E198: Comments
A199: 96 | B199: 1 | C199: Room climate (fresh odour) | D199: 1
A200: 97 | B200: 2 | C200: Pleasant temperature | D200: 1
A201: 98 | B201: 3 | C201: Atmosphere (well-being) | D201: 1
A202: 99 | B202: 4 | C202: Noise level (quiet) | D202: 1
A203: 100 | B203: 5 | C203: Corresponding furniture | D203: 1
A204: 101 | B204: 6 | C204: Cleanliness | D204: 1
A205: 102 | B205: 7 | C205: Welcome letter / card | D205: 1
A206: 103 | B206: 8 | C206: Greeting (e.g. flours, fruit, confectionary ...) | D206: 1
A207: 104 | B207: 9 | C207: Door lock working properly | D207: 1
C211: The bed | E211: Comments
A212: 105 | B212: 10 | C212: Suitable for the hotel standard | D212: 1
A213: 106 | B213: 11 | C213: Quality of the bed sheets is appropriate | D213: 1
A214: 107 | B214: 12 | C214: Mattress/lying comfort | D214: 1
A215: 108 | B215: 13 | C215: Bed sheets suitable for the time of year | D215: 1
A216: 109 | B216: 14 | C216: Additional pillows available on request | D216: 1
A217: 110 | B217: 15 | C217: Additional bed sheets available on request | D217: 1
A218: 111 | B218: 16 | C218: Two pillows per guest | D218: 1
A219: 112 | B219: 17 | C219: Selection of different pillows (e.g. anti-allergy) | D219: 1
C221: Furniture | E221: Comments
A222: 113 | B222: 18 | C222: Quality and condition of the curtains | D222: 1
A223: 114 | B223: 19 | C223: Darkening possible with the curtains | D223: 1
A224: 115 | B224: 20 | C224: Switches and sockets easy to reach | D224: 1
A225: 116 | B225: 21 | C225: Defect-free walls | D225: 1
A226: 117 | B226: 22 | C226: Defect-free lighting | D226: 1
A227: 118 | B227: 23 | C227: Defect-free furniture | D227: 1
A228: 119 | B228: 24 | C228: Suitable number of uniform hangers (no wire hangers) | D228: 1
A229: 120 | B229: 25 | C229: Spacious storage area | D229: 1
A230: 121 | B230: 26 | C230: Spacious hanging area in the wardrobes | D230: 1
C234: Equipment and services | E234: Comments
A235: 122 | B235: 27 | C235: Radio and TV programs properly set | D235: 1
A236: 123 | B236: 28 | C236: List of programs available | D236: 1
A237: 124 | B237: 29 | C237: Current television guide displayed | D237: 1
A238: 125 | B238: 30 | C238: Writing folder with writing utensils | D238: 1
A239: 126 | B239: 31 | C239: Telephone with the option of make internal and external calls | D239: 1
A240: 127 | B240: 32 | C240: Multi-lingual operating instructions for the telephone | D240: 1
A241: 128 | B241: 33 | C241: Writing pad and pencil next to the phone | D241: 1
A242: 129 | B242: 34 | C242: Working modem connection (or equivalent Internet connection available for the guest) | D242: 1
A243: 130 | B243: 35 | C243: Internet connection in the room (wireless or plug-in) | D243: 1
A244: 131 | B244: 36 | C244: PC with internet available in the room on request | D244: 1
A245: 132 | B245: 37 | C245: Proper functioning of all electrical equipment (e.g. lights, TV and hair dryer) | D245: 1
A246: 133 | B246: 38 | C246: Safe in the room | D246: 1
A247: 134 | B247: 39 | C247: Alarm (or an alarm function on the TV or telephone) | D247: 1
A248: 135 | B248: 40 | C248: Alternative alarm service (reliability, friendliness) | D248: 1
A249: 136 | B249: 41 | C249: "Do not disturb/please clean" sign available | D249: 1
A250: 137 | B250: 42 | C250: Condition and up-to-date status of the information folder | D250: 1
A251: 138 | B251: 43 | C251: Safety instructions (e.g. fire protection, emergency escape routes) visible | D251: 1
A252: 139 | B252: 44 | C252: Room prices on display or in the information folder | D252: 1
A253: 140 | B253: 45 | C253: Guest mazagine laid out | D253: 1
A254: 141 | B254: 46 | C254: Newspaper and magazine service | D254: 1
A255: 142 | B255: 47 | C255: Service manual | D255: 1
A256: 143 | B256: 48 | C256: Multi-lingual service manual | D256: 1
A257: 144 | B257: 49 | C257: At least two drinking glasses on coasters (e.g. serviettes) | D257: 1
A258: 145 | B258: 50 | C258: Drinks from room service | D258: 1
A259: 146 | B259: 51 | C259: Food from room service | D259: 1
A260: 147 | B260: 52 | C260: Breakfest menu from room service | D260: 1
A261: 148 | B261: 53 | C261: Laundry service | D261: 1
A262: 149 | B262: 54 | C262: Ironing service | D262: 1
... 416 more rows

Sheet spa + leisure
C7: Austrian Professional Hotel Association
C11: Questionnaire Mystery Guest check
C18: Working document, 13.10.2010
C24: This is a list of the necessary test criteria for companies which want to carry out a mystery test within the scope of the Austrian hotel classification. The steering commission or the Austrian Professional Hotel Association, respectively, will make the final decision about the company's listing after checking the prerequisites.
C26: positively met criteria | D26: 1
C27: negatively met criteria | D27: 0
C30: 1. Website
E31: Comments
A32: 1 | B32: 1 | C32: Clear website address | D32: 1
A33: 2 | B33: 2 | C33: All links working | D33: 1
A34: 3 | B34: 3 | C34: Clear arrangement | D34: 1
A35: 4 | B35: 4 | C35: Search function | D35: 1
A36: 5 | B36: 5 | C36: Integrated guest feedback | D36: 1
A37: 6 | B37: 6 | C37: Typing, spelling and grammar errors | D37: 1
A38: 7 | B38: 7 | C38: Informative, realistic presence with hotel pictures | D38: 1
A39: 8 | B39: 8 | C39: Up-to-date | D39: 1
A40: 9 | B40: 9 | C40: Legal information | D40: 1
A41: 10 | B41: 10 | C41: English translation | D41: 1
A42: 11 | B42: 11 | C42: Contact details (e-mail, telephone, etc.) | D42: 1
A43: 12 | B43: 12 | C43: Online booking on own website | D43: 1
A44: 13 | B44: 13 | C44: Directions / Map | D44: 1
A45: 14 | B45: 14 | C45: General Terms and Conditions or cancellation conditions available | D45: 1
C46: Number of criteria met | D46: =SUM(D32:D45) -> 14
C47: Multiplication of the number of criteria met by | D47: =D733 -> 0.2352941176
C48: Maximum total | D48: =D47*B45 -> 3.294117647
C49: Points total | D49: =D46*D47 -> 3.294117647
C51: Comments
C53: 2. E-mail and mail
C55: Response to your e-mail request, | E55: Comments
A56: 15 | B56: 1 | C56: Within … hours of the request (3*S - 12; 4*S - 8; 5*/5*S - 4) | D56: 1
A57: 16 | B57: 2 | C57: Quality (writing style, choice of words, correct form of address, spelling) | D57: 1
A58: 17 | B58: 3 | C58: Information content (e.g. additional offers) | D58: 1
A59: 18 | B59: 4 | C59: Individual processing | D59: 1
A60: 19 | B60: 5 | C60: In case of an offer: details about the cancellation conditions | D60: 1
C64: Reservation confirmation (e-mail, fax) as as response to your booking | E64: Comments
A65: 20 | B65: 6 | C65: Within … hours of the reservation (3*S - 24; 4*S - 12; 5*/5*S - 8) | D65: 1
A66: 21 | B66: 7 | C66: Quality (writing style, choice of words, correct form of address, spelling) | D66: 1
A67: 22 | B67: 8 | C67: Information content (including the current directions / map) | D67: 1
A68: 23 | B68: 9 | C68: Information about the cancellation conditions | D68: 1
C72: Documents sent by post | E72: Comments
A73: 24 | B73: 10 | C73: Delivery within 3 working days | D73: 1
A74: 25 | B74: 11 | C74: Cover letter | D74: 1
A75: 26 | B75: 12 | C75: Quality (writing style, choice of words, correct form of address, spelling) | D75: 1
A76: 27 | B76: 13 | C76: Information content (e.g. additional offers), | D76: 1
A77: 28 | B77: 14 | C77: Individual processing | D77: 1
A78: 29 | B78: 15 | C78: Corresponding qualitative documents and leaflets | D78: 1
C79: Number of criteria met | D79: =SUM(D56:D78) -> 15
C80: Multiplication of the number of criteria met by | D80: =D733 -> 0.2352941176
C81: Maximum total | D81: =D80*B78 -> 3.529411765
C82: Points total | D82: =D80*D79 -> 3.529411765
C84: Comments
C87: 3. Telephone
E88: Comments
A89: 30 | B89: 1 | C89: Waiting time (3*S - 1 min.; 4*S - 30 seconds; 5*/5*S - 15 seconds) | D89: 1
A90: 31 | B90: 2 | C90: Text or sound recordings during the waiting time | D90: 1
A91: 32 | B91: 3 | C91: Cordiality | D91: 1
A92: 33 | B92: 4 | C92: Clear voice and pronounciation | D92: 1
A93: 34 | B93: 5 | C93: Addressed by name | D93: 1
A94: 35 | B94: 6 | C94: All data compiled (e.g. address, telephone, e-mail request) | D94: 1
A95: 36 | B95: 7 | C95: Professional competency | D95: 1
A96: 37 | B96: 8 | C96: Arrival and departure dates repeated and confirmed | D96: 1
A97: 38 | B97: 9 | C97: Information about categories | D97: 1
A98: 39 | B98: 10 | C98: Information about prices | D98: 1
A99: 40 | B99: 11 | C99: Information about forms of payment | D99: 1
A100: 41 | B100: 12 | C100: Information about services | D100: 1
A101: 42 | B101: 13 | C101: Information about check-in times | D101: 1
A102: 43 | B102: 14 | C102: Information about additional offers | D102: 1
A103: 44 | B103: 15 | C103: Arrival directions | D103: 1
A104: 45 | B104: 16 | C104: Offer of a provisional booking | D104: 1
A105: 46 | B105: 17 | C105: Reference to the cancellation conditions | D105: 1
A106: 47 | B106: 18 | C106: Friendly goodbye and thanks | D106: 1
C107: Number of criteria met | D107: =SUM(D89:D106) -> 18
C108: Multiplication of the number of criteria met by | D108: =D733 -> 0.2352941176
C109: Maximum total | D109: =D108*B106 -> 4.235294118
C110: Points total | D110: =D108*D107 -> 4.235294118
C112: Comments
C115: 4. Arrival and outdoor facilities
E116: Comments
A117: 48 | B117: 1 | C117: Easy to find (e.g. signposted) | D117: 1
A118: 49 | B118: 2 | C118: Access options | D118: 1
A119: 50 | B119: 3 | C119: Parking spaces | D119: 1
A120: 51 | B120: 4 | C120: Garage parking spaces | D120: 1
A121: 52 | B121: 5 | C121: Lighting | D121: 1
A122: 53 | B122: 6 | C122: Luggage service | D122: 1
A123: 54 | B123: 7 | C123: Easy orientation | D123: 1
A124: 55 | B124: 8 | C124: Cleanliness and condition | D124: 1
A125: 56 | B125: 9 | C125: Parking service (e.g. doorman, valet) | D125: 1
C126: Number of criteria met | D126: =SUM(D117:D125) -> 9
C127: Multiplication of the number of criteria met by | D127: =D733 -> 0.2352941176
C128: Maximum total | D128: =D127*B125 -> 2.117647059
C129: Points total | D129: =D127*D126 -> 2.117647059
C131: Comments
C134: 5. Check-in
C136: Reception | E136: Comments
A137: 57 | B137: 1 | C137: Room climate (odour) | D137: 1
A138: 58 | B138: 2 | C138: Room temperature | D138: 1
A139: 59 | B139: 3 | C139: Sufficient lighting | D139: 1
A140: 60 | B140: 4 | C140: Ambience/atmosphere | D140: 1
A141: 61 | B141: 5 | C141: Furniture of an appropriate quality | D141: 1
A142: 62 | B142: 6 | C142: Clean and tidy | D142: 1
A143: 63 | B143: 7 | C143: Matching decorations | D143: 1
A144: 64 | B144: 8 | C144: Generous seating area for guests | D144: 1
A145: 65 | B145: 9 | C145: Appearance of the check-in area (front office - clean and tidy) | D145: 1
C149: Front office staff | E149: Comments
A150: 66 | B150: 10 | C150: Attendance | D150: 1
A151: 67 | B151: 11 | C151: Greeting (e.g. welcome drink) | D151: 1
A152: 68 | B152: 12 | C152: Cordiality and friendliness | D152: 1
A153: 69 | B153: 13 | C153: Appearance of the employees (e.g. uniform, name tag) | D153: 1
A154: 70 | B154: 14 | C154: Professional competency | D154: 1
A155: 71 | B155: 15 | C155: Knowledge of foreign languages | D155: 1
A156: 72 | B156: 16 | C156: Attentiveness | D156: 1
A157: 73 | B157: 17 | C157: Attention to detail | D157: 1
A158: 74 | B158: 18 | C158: Efficiency (speed and flexibility) | D158: 1
A159: 75 | B159: 19 | C159: Readiness to help | D159: 1
A160: 76 | B160: 20 | C160: Clear, easy to understand pronounciation | D160: 1
A161: 77 | B161: 21 | C161: Guest addressed by name | D161: 1
A162: 78 | B162: 22 | C162: Pre-prepared registration form | D162: 1
A163: 79 | B163: 23 | C163: Luggage service offered | D163: 1
A164: 80 | B164: 24 | C164: Offer of escorting to the room | D164: 1
A165: 81 | B165: 25 | C165: General site information offered or provided | D165: 1
A166: 82 | B166: 26 | C166: Pleasant stay wished | D166: 1
C170: Escort to the room | E170: Comments
A171: 83 | B171: 27 | C171: Appearance of the employee | D171: 1
A172: 84 | B172: 28 | C172: Friendliness, conversation | D172: 1
C176: Room information | E176: Comments
A177: 85 | B177: 29 | C177: Indication of the main switch (for power in the room) | D177: 1
A178: 86 | B178: 30 | C178: Indication of the heating or air-conditioning | D178: 1
A179: 87 | B179: 31 | C179: Telephone (written information sufficient) | D179: 1
A180: 88 | B180: 32 | C180: Telephone book or numbers (for room service) - written information sufficient | D180: 1
A181: 89 | B181: 33 | C181: Minibar (written information sufficient) | D181: 1
A182: 90 | B182: 34 | C182: Safe (written information sufficient) | D182: 1
A183: 91 | B183: 35 | C183: Laundry service (written information sufficient) | D183: 1
A184: 92 | B184: 36 | C184: Ironing service (written information sufficient) | D184: 1
A185: 93 | B185: 37 | C185: Opening hours of the restaurant and bar (written information sufficient) | D185: 1
A186: 94 | B186: 38 | C186: Breakfast times (written information sufficient) | D186: 1
A187: 95 | B187: 39 | C187: Reception available 24 hours and attended for … hours (3*S - 14; 4*S - 18; 5*/5*S - 24) | D187: 1
C188: Number of criteria met | D188: =SUM(D137:D187) -> 39
C189: Multiplication of the number of criteria met by | D189: =D733 -> 0.2352941176
C190: Maximum total | D190: =D189*B187 -> 9.176470588
C191: Points total | D191: =D189*D188 -> 9.176470588
C193: Comments
C196: 6. Rooms
C198: First impression and general character | E198: Comments
A199: 96 | B199: 1 | C199: Room climate (fresh odour) | D199: 1
A200: 97 | B200: 2 | C200: Pleasant temperature | D200: 1
A201: 98 | B201: 3 | C201: Atmosphere (well-being) | D201: 1
A202: 99 | B202: 4 | C202: Noise level (quiet) | D202: 1
A203: 100 | B203: 5 | C203: Corresponding furniture | D203: 1
A204: 101 | B204: 6 | C204: Cleanliness | D204: 1
A205: 102 | B205: 7 | C205: Welcome letter / card | D205: 1
A206: 103 | B206: 8 | C206: Greeting (e.g. flours, fruit, confectionary ...) | D206: 1
A207: 104 | B207: 9 | C207: Door lock working properly | D207: 1
C211: The bed | E211: Comments
A212: 105 | B212: 10 | C212: Suitable for the hotel standard | D212: 1
A213: 106 | B213: 11 | C213: Quality of the bed sheets is appropriate | D213: 1
A214: 107 | B214: 12 | C214: Mattress/lying comfort | D214: 1
A215: 108 | B215: 13 | C215: Bed sheets suitable for the time of year | D215: 1
A216: 109 | B216: 14 | C216: Additional pillows available on request | D216: 1
A217: 110 | B217: 15 | C217: Additional bed sheets available on request | D217: 1
A218: 111 | B218: 16 | C218: Two pillows per guest | D218: 1
A219: 112 | B219: 17 | C219: Selection of different pillows (e.g. anti-allergy) | D219: 1
C221: Furniture | E221: Comments
A222: 113 | B222: 18 | C222: Quality and condition of the curtains | D222: 1
A223: 114 | B223: 19 | C223: Darkening possible with the curtains | D223: 1
A224: 115 | B224: 20 | C224: Switches and sockets easy to reach | D224: 1
A225: 116 | B225: 21 | C225: Defect-free walls | D225: 1
A226: 117 | B226: 22 | C226: Defect-free lighting | D226: 1
A227: 118 | B227: 23 | C227: Defect-free furniture | D227: 1
A228: 119 | B228: 24 | C228: Suitable number of uniform hangers (no wire hangers) | D228: 1
A229: 120 | B229: 25 | C229: Spacious storage area | D229: 1
A230: 121 | B230: 26 | C230: Spacious hanging area in the wardrobes | D230: 1
C234: Equipment and services | E234: Comments
A235: 122 | B235: 27 | C235: Radio and TV programs properly set | D235: 1
A236: 123 | B236: 28 | C236: List of programs available | D236: 1
A237: 124 | B237: 29 | C237: Current television guide displayed | D237: 1
A238: 125 | B238: 30 | C238: Writing folder with writing utensils | D238: 1
A239: 126 | B239: 31 | C239: Telephone with the option of make internal and external calls | D239: 1
A240: 127 | B240: 32 | C240: Multi-lingual operating instructions for the telephone | D240: 1
A241: 128 | B241: 33 | C241: Writing pad and pencil next to the phone | D241: 1
A242: 129 | B242: 34 | C242: Working modem connection (or equivalent Internet connection available for the guest) | D242: 1
A243: 130 | B243: 35 | C243: Internet connection in the room (wireless or plug-in) | D243: 1
A244: 131 | B244: 36 | C244: PC with internet available in the room on request | D244: 1
A245: 132 | B245: 37 | C245: Proper functioning of all electrical equipment (e.g. lights, TV and hair dryer) | D245: 1
A246: 133 | B246: 38 | C246: Safe in the room | D246: 1
A247: 134 | B247: 39 | C247: Alarm (or an alarm function on the TV or telephone) | D247: 1
A248: 135 | B248: 40 | C248: Alternative alarm service (reliability, friendliness) | D248: 1
A249: 136 | B249: 41 | C249: "Do not disturb/please clean" sign available | D249: 1
A250: 137 | B250: 42 | C250: Condition and up-to-date status of the information folder | D250: 1
A251: 138 | B251: 43 | C251: Safety instructions (e.g. fire protection, emergency escape routes) visible | D251: 1
A252: 139 | B252: 44 | C252: Room prices on display or in the information folder | D252: 1
A253: 140 | B253: 45 | C253: Guest mazagine laid out | D253: 1
A254: 141 | B254: 46 | C254: Newspaper and magazine service | D254: 1
A255: 142 | B255: 47 | C255: Service manual | D255: 1
A256: 143 | B256: 48 | C256: Multi-lingual service manual | D256: 1
A257: 144 | B257: 49 | C257: At least two drinking glasses on coasters (e.g. serviettes) | D257: 1
A258: 145 | B258: 50 | C258: Drinks from room service | D258: 1
A259: 146 | B259: 51 | C259: Food from room service | D259: 1
A260: 147 | B260: 52 | C260: Breakfest menu from room service | D260: 1
A261: 148 | B261: 53 | C261: Laundry service | D261: 1
A262: 149 | B262: 54 | C262: Ironing service | D262: 1
... 385 more rows

Sheet spa + conference
C7: Austrian Professional Hotel Association
C11: Questionnaire Mystery Guest check
C18: Working document, 13.10.2010
C24: This is a list of the necessary test criteria for companies which want to carry out a mystery test within the scope of the Austrian hotel classification. The steering commission or the Austrian Professional Hotel Association, respectively, will make the final decision about the company's listing after checking the prerequisites.
C26: positively met criteria | D26: 1
C27: negatively met criteria | D27: 0
C30: 1. Website
E31: Comments
A32: 1 | B32: 1 | C32: Clear website address | D32: 1
A33: 2 | B33: 2 | C33: All links working | D33: 1
A34: 3 | B34: 3 | C34: Clear arrangement | D34: 1
A35: 4 | B35: 4 | C35: Search function | D35: 1
A36: 5 | B36: 5 | C36: Integrated guest feedback | D36: 1
A37: 6 | B37: 6 | C37: Typing, spelling and grammar errors | D37: 1
A38: 7 | B38: 7 | C38: Informative, realistic presence with hotel pictures | D38: 1
A39: 8 | B39: 8 | C39: Up-to-date | D39: 1
A40: 9 | B40: 9 | C40: Legal information | D40: 1
A41: 10 | B41: 10 | C41: English translation | D41: 1
A42: 11 | B42: 11 | C42: Contact details (e-mail, telephone, etc.) | D42: 1
A43: 12 | B43: 12 | C43: Online booking on own website | D43: 1
A44: 13 | B44: 13 | C44: Directions / Map | D44: 1
A45: 14 | B45: 14 | C45: General Terms and Conditions or cancellation conditions available | D45: 1
C46: Number of criteria met | D46: =SUM(D32:D45) -> 14
C47: Multiplication of the number of criteria met by | D47: =D734 -> 0.2352941176
C48: Maximum total | D48: =D47*B45 -> 3.294117647
C49: Points total | D49: =D46*D47 -> 3.294117647
C51: Comments
C53: 2. E-mail and mail
C55: Response to your e-mail request, | E55: Comments
A56: 15 | B56: 1 | C56: Within … hours of the request (3*S - 12; 4*S - 8; 5*/5*S - 4) | D56: 1
A57: 16 | B57: 2 | C57: Quality (writing style, choice of words, correct form of address, spelling) | D57: 1
A58: 17 | B58: 3 | C58: Information content (e.g. additional offers) | D58: 1
A59: 18 | B59: 4 | C59: Individual processing | D59: 1
A60: 19 | B60: 5 | C60: In case of an offer: details about the cancellation conditions | D60: 1
C64: Reservation confirmation (e-mail, fax) as as response to your booking | E64: Comments
A65: 20 | B65: 6 | C65: Within … hours of the reservation (3*S - 24; 4*S - 12; 5*/5*S - 8) | D65: 1
A66: 21 | B66: 7 | C66: Quality (writing style, choice of words, correct form of address, spelling) | D66: 1
A67: 22 | B67: 8 | C67: Information content (including the current directions / map) | D67: 1
A68: 23 | B68: 9 | C68: Information about the cancellation conditions | D68: 1
C72: Documents sent by post | E72: Comments
A73: 24 | B73: 10 | C73: Delivery within 3 working days | D73: 1
A74: 25 | B74: 11 | C74: Cover letter | D74: 1
A75: 26 | B75: 12 | C75: Quality (writing style, choice of words, correct form of address, spelling) | D75: 1
A76: 27 | B76: 13 | C76: Information content (e.g. additional offers), | D76: 1
A77: 28 | B77: 14 | C77: Individual processing | D77: 1
A78: 29 | B78: 15 | C78: Corresponding qualitative documents and leaflets | D78: 1
C79: Number of criteria met | D79: =SUM(D56:D78) -> 15
C80: Multiplication of the number of criteria met by | D80: =D734 -> 0.2352941176
C81: Maximum total | D81: =D80*B78 -> 3.529411765
C82: Points total | D82: =D80*D79 -> 3.529411765
C84: Comments
C87: 3. Telephone
E88: Comments
A89: 30 | B89: 1 | C89: Waiting time (3*S - 1 min.; 4*S - 30 seconds; 5*/5*S - 15 seconds) | D89: 1
A90: 31 | B90: 2 | C90: Text or sound recordings during the waiting time | D90: 1
A91: 32 | B91: 3 | C91: Cordiality | D91: 1
A92: 33 | B92: 4 | C92: Clear voice and pronounciation | D92: 1
A93: 34 | B93: 5 | C93: Addressed by name | D93: 1
A94: 35 | B94: 6 | C94: All data compiled (e.g. address, telephone, e-mail request) | D94: 1
A95: 36 | B95: 7 | C95: Professional competency | D95: 1
A96: 37 | B96: 8 | C96: Arrival and departure dates repeated and confirmed | D96: 1
A97: 38 | B97: 9 | C97: Information about categories | D97: 1
A98: 39 | B98: 10 | C98: Information about prices | D98: 1
A99: 40 | B99: 11 | C99: Information about forms of payment | D99: 1
A100: 41 | B100: 12 | C100: Information about services | D100: 1
A101: 42 | B101: 13 | C101: Information about check-in times | D101: 1
A102: 43 | B102: 14 | C102: Information about additional offers | D102: 1
A103: 44 | B103: 15 | C103: Arrival directions | D103: 1
A104: 45 | B104: 16 | C104: Offer of a provisional booking | D104: 1
A105: 46 | B105: 17 | C105: Reference to the cancellation conditions | D105: 1
A106: 47 | B106: 18 | C106: Friendly goodbye and thanks | D106: 1
C107: Number of criteria met | D107: =SUM(D89:D106) -> 18
C108: Multiplication of the number of criteria met by | D108: =D734 -> 0.2352941176
C109: Maximum total | D109: =D108*B106 -> 4.235294118
C110: Points total | D110: =D108*D107 -> 4.235294118
C112: Comments
C115: 4. Arrival and outdoor facilities
E116: Comments
A117: 48 | B117: 1 | C117: Easy to find (e.g. signposted) | D117: 1
A118: 49 | B118: 2 | C118: Access options | D118: 1
A119: 50 | B119: 3 | C119: Parking spaces | D119: 1
A120: 51 | B120: 4 | C120: Garage parking spaces | D120: 1
A121: 52 | B121: 5 | C121: Lighting | D121: 1
A122: 53 | B122: 6 | C122: Luggage service | D122: 1
A123: 54 | B123: 7 | C123: Easy orientation | D123: 1
A124: 55 | B124: 8 | C124: Cleanliness and condition | D124: 1
A125: 56 | B125: 9 | C125: Parking service (e.g. doorman, valet) | D125: 1
C126: Number of criteria met | D126: =SUM(D117:D125) -> 9
C127: Multiplication of the number of criteria met by | D127: =D734 -> 0.2352941176
C128: Maximum total | D128: =D127*B125 -> 2.117647059
C129: Points total | D129: =D127*D126 -> 2.117647059
C131: Comments
C134: 5. Check-in
C136: Reception | E136: Comments
A137: 57 | B137: 1 | C137: Room climate (odour) | D137: 1
A138: 58 | B138: 2 | C138: Room temperature | D138: 1
A139: 59 | B139: 3 | C139: Sufficient lighting | D139: 1
A140: 60 | B140: 4 | C140: Ambience/atmosphere | D140: 1
A141: 61 | B141: 5 | C141: Furniture of an appropriate quality | D141: 1
A142: 62 | B142: 6 | C142: Clean and tidy | D142: 1
A143: 63 | B143: 7 | C143: Matching decorations | D143: 1
A144: 64 | B144: 8 | C144: Generous seating area for guests | D144: 1
A145: 65 | B145: 9 | C145: Appearance of the check-in area (front office - clean and tidy) | D145: 1
C149: Front office staff | E149: Comments
A150: 66 | B150: 10 | C150: Attendance | D150: 1
A151: 67 | B151: 11 | C151: Greeting (e.g. welcome drink) | D151: 1
A152: 68 | B152: 12 | C152: Cordiality and friendliness | D152: 1
A153: 69 | B153: 13 | C153: Appearance of the employees (e.g. uniform, name tag) | D153: 1
A154: 70 | B154: 14 | C154: Professional competency | D154: 1
A155: 71 | B155: 15 | C155: Knowledge of foreign languages | D155: 1
A156: 72 | B156: 16 | C156: Attentiveness | D156: 1
A157: 73 | B157: 17 | C157: Attention to detail | D157: 1
A158: 74 | B158: 18 | C158: Efficiency (speed and flexibility) | D158: 1
A159: 75 | B159: 19 | C159: Readiness to help | D159: 1
A160: 76 | B160: 20 | C160: Clear, easy to understand pronounciation | D160: 1
A161: 77 | B161: 21 | C161: Guest addressed by name | D161: 1
A162: 78 | B162: 22 | C162: Pre-prepared registration form | D162: 1
A163: 79 | B163: 23 | C163: Luggage service offered | D163: 1
A164: 80 | B164: 24 | C164: Offer of escorting to the room | D164: 1
A165: 81 | B165: 25 | C165: General site information offered or provided | D165: 1
A166: 82 | B166: 26 | C166: Pleasant stay wished | D166: 1
C170: Escort to the room | E170: Comments
A171: 83 | B171: 27 | C171: Appearance of the employee | D171: 1
A172: 84 | B172: 28 | C172: Friendliness, conversation | D172: 1
C176: Room information | E176: Comments
A177: 85 | B177: 29 | C177: Indication of the main switch (for power in the room) | D177: 1
A178: 86 | B178: 30 | C178: Indication of the heating or air-conditioning | D178: 1
A179: 87 | B179: 31 | C179: Telephone (written information sufficient) | D179: 1
A180: 88 | B180: 32 | C180: Telephone book or numbers (for room service) - written information sufficient | D180: 1
A181: 89 | B181: 33 | C181: Minibar (written information sufficient) | D181: 1
A182: 90 | B182: 34 | C182: Safe (written information sufficient) | D182: 1
A183: 91 | B183: 35 | C183: Laundry service (written information sufficient) | D183: 1
A184: 92 | B184: 36 | C184: Ironing service (written information sufficient) | D184: 1
A185: 93 | B185: 37 | C185: Opening hours of the restaurant and bar (written information sufficient) | D185: 1
A186: 94 | B186: 38 | C186: Breakfast times (written information sufficient) | D186: 1
A187: 95 | B187: 39 | C187: Reception available 24 hours and attended for … hours (3*S - 14; 4*S - 18; 5*/5*S - 24) | D187: 1
C188: Number of criteria met | D188: =SUM(D137:D187) -> 39
C189: Multiplication of the number of criteria met by | D189: =D734 -> 0.2352941176
C190: Maximum total | D190: =D189*B187 -> 9.176470588
C191: Points total | D191: =D189*D188 -> 9.176470588
C193: Comments
C196: 6. Rooms
C198: First impression and general character | E198: Comments
A199: 96 | B199: 1 | C199: Room climate (fresh odour) | D199: 1
A200: 97 | B200: 2 | C200: Pleasant temperature | D200: 1
A201: 98 | B201: 3 | C201: Atmosphere (well-being) | D201: 1
A202: 99 | B202: 4 | C202: Noise level (quiet) | D202: 1
A203: 100 | B203: 5 | C203: Corresponding furniture | D203: 1
A204: 101 | B204: 6 | C204: Cleanliness | D204: 1
A205: 102 | B205: 7 | C205: Welcome letter / card | D205: 1
A206: 103 | B206: 8 | C206: Greeting (e.g. flours, fruit, confectionary ...) | D206: 1
A207: 104 | B207: 9 | C207: Door lock working properly | D207: 1
C211: The bed | E211: Comments
A212: 105 | B212: 10 | C212: Suitable for the hotel standard | D212: 1
A213: 106 | B213: 11 | C213: Quality of the bed sheets is appropriate | D213: 1
A214: 107 | B214: 12 | C214: Mattress/lying comfort | D214: 1
A215: 108 | B215: 13 | C215: Bed sheets suitable for the time of year | D215: 1
A216: 109 | B216: 14 | C216: Additional pillows available on request | D216: 1
A217: 110 | B217: 15 | C217: Additional bed sheets available on request | D217: 1
A218: 111 | B218: 16 | C218: Two pillows per guest | D218: 1
A219: 112 | B219: 17 | C219: Selection of different pillows (e.g. anti-allergy) | D219: 1
C221: Furniture | E221: Comments
A222: 113 | B222: 18 | C222: Quality and condition of the curtains | D222: 1
A223: 114 | B223: 19 | C223: Darkening possible with the curtains | D223: 1
A224: 115 | B224: 20 | C224: Switches and sockets easy to reach | D224: 1
A225: 116 | B225: 21 | C225: Defect-free walls | D225: 1
A226: 117 | B226: 22 | C226: Defect-free lighting | D226: 1
A227: 118 | B227: 23 | C227: Defect-free furniture | D227: 1
A228: 119 | B228: 24 | C228: Suitable number of uniform hangers (no wire hangers) | D228: 1
A229: 120 | B229: 25 | C229: Spacious storage area | D229: 1
A230: 121 | B230: 26 | C230: Spacious hanging area in the wardrobes | D230: 1
C234: Equipment and services | E234: Comments
A235: 122 | B235: 27 | C235: Radio and TV programs properly set | D235: 1
A236: 123 | B236: 28 | C236: List of programs available | D236: 1
A237: 124 | B237: 29 | C237: Current television guide displayed | D237: 1
A238: 125 | B238: 30 | C238: Writing folder with writing utensils | D238: 1
A239: 126 | B239: 31 | C239: Telephone with the option of make internal and external calls | D239: 1
A240: 127 | B240: 32 | C240: Multi-lingual operating instructions for the telephone | D240: 1
A241: 128 | B241: 33 | C241: Writing pad and pencil next to the phone | D241: 1
A242: 129 | B242: 34 | C242: Working modem connection (or equivalent Internet connection available for the guest) | D242: 1
A243: 130 | B243: 35 | C243: Internet connection in the room (wireless or plug-in) | D243: 1
A244: 131 | B244: 36 | C244: PC with internet available in the room on request | D244: 1
A245: 132 | B245: 37 | C245: Proper functioning of all electrical equipment (e.g. lights, TV and hair dryer) | D245: 1
A246: 133 | B246: 38 | C246: Safe in the room | D246: 1
A247: 134 | B247: 39 | C247: Alarm (or an alarm function on the TV or telephone) | D247: 1
A248: 135 | B248: 40 | C248: Alternative alarm service (reliability, friendliness) | D248: 1
A249: 136 | B249: 41 | C249: "Do not disturb/please clean" sign available | D249: 1
A250: 137 | B250: 42 | C250: Condition and up-to-date status of the information folder | D250: 1
A251: 138 | B251: 43 | C251: Safety instructions (e.g. fire protection, emergency escape routes) visible | D251: 1
A252: 139 | B252: 44 | C252: Room prices on display or in the information folder | D252: 1
A253: 140 | B253: 45 | C253: Guest mazagine laid out | D253: 1
A254: 141 | B254: 46 | C254: Newspaper and magazine service | D254: 1
A255: 142 | B255: 47 | C255: Service manual | D255: 1
A256: 143 | B256: 48 | C256: Multi-lingual service manual | D256: 1
A257: 144 | B257: 49 | C257: At least two drinking glasses on coasters (e.g. serviettes) | D257: 1
A258: 145 | B258: 50 | C258: Drinks from room service | D258: 1
A259: 146 | B259: 51 | C259: Food from room service | D259: 1
A260: 147 | B260: 52 | C260: Breakfest menu from room service | D260: 1
A261: 148 | B261: 53 | C261: Laundry service | D261: 1
A262: 149 | B262: 54 | C262: Ironing service | D262: 1
... 385 more rows

Sheet conference + leisure
C7: Austrian Professional Hotel Association
C11: Questionnaire Mystery Guest check
C18: Working document, 13.10.2010
C24: This is a list of the necessary test criteria for companies which want to carry out a mystery test within the scope of the Austrian hotel classification. The steering commission or the Austrian Professional Hotel Association, respectively, will make the final decision about the company's listing after checking the prerequisites.
C26: positively met criteria | D26: 1
C27: negatively met criteria | D27: 0
C30: 1. Website
E31: Comments
A32: 1 | B32: 1 | C32: Clear website address | D32: 1
A33: 2 | B33: 2 | C33: All links working | D33: 1
A34: 3 | B34: 3 | C34: Clear arrangement | D34: 1
A35: 4 | B35: 4 | C35: Search function | D35: 1
A36: 5 | B36: 5 | C36: Integrated guest feedback | D36: 1
A37: 6 | B37: 6 | C37: Typing, spelling and grammar errors | D37: 1
A38: 7 | B38: 7 | C38: Informative, realistic presence with hotel pictures | D38: 1
A39: 8 | B39: 8 | C39: Up-to-date | D39: 1
A40: 9 | B40: 9 | C40: Legal information | D40: 1
A41: 10 | B41: 10 | C41: English translation | D41: 1
A42: 11 | B42: 11 | C42: Contact details (e-mail, telephone, etc.) | D42: 1
A43: 12 | B43: 12 | C43: Online booking on own website | D43: 1
A44: 13 | B44: 13 | C44: Directions / Map | D44: 1
A45: 14 | B45: 14 | C45: General Terms and Conditions or cancellation conditions available | D45: 1
C46: Number of criteria met | D46: =SUM(D32:D45) -> 14
C47: Multiplication of the number of criteria met by | D47: =D734 -> 0.2352941176
C48: Maximum total | D48: =D47*B45 -> 3.294117647
C49: Points total | D49: =D46*D47 -> 3.294117647
C51: Comments
C53: 2. E-mail and mail
C55: Response to your e-mail request, | E55: Comments
A56: 15 | B56: 1 | C56: Within … hours of the request (3*S - 12; 4*S - 8; 5*/5*S - 4) | D56: 1
A57: 16 | B57: 2 | C57: Quality (writing style, choice of words, correct form of address, spelling) | D57: 1
A58: 17 | B58: 3 | C58: Information content (e.g. additional offers) | D58: 1
A59: 18 | B59: 4 | C59: Individual processing | D59: 1
A60: 19 | B60: 5 | C60: In case of an offer: details about the cancellation conditions | D60: 1
C64: Reservation confirmation (e-mail, fax) as as response to your booking | E64: Comments
A65: 20 | B65: 6 | C65: Within … hours of the reservation (3*S - 24; 4*S - 12; 5*/5*S - 8) | D65: 1
A66: 21 | B66: 7 | C66: Quality (writing style, choice of words, correct form of address, spelling) | D66: 1
A67: 22 | B67: 8 | C67: Information content (including the current directions / map) | D67: 1
A68: 23 | B68: 9 | C68: Information about the cancellation conditions | D68: 1
C72: Documents sent by post | E72: Comments
A73: 24 | B73: 10 | C73: Delivery within 3 working days | D73: 1
A74: 25 | B74: 11 | C74: Cover letter | D74: 1
A75: 26 | B75: 12 | C75: Quality (writing style, choice of words, correct form of address, spelling) | D75: 1
A76: 27 | B76: 13 | C76: Information content (e.g. additional offers), | D76: 1
A77: 28 | B77: 14 | C77: Individual processing | D77: 1
A78: 29 | B78: 15 | C78: Corresponding qualitative documents and leaflets | D78: 1
C79: Number of criteria met | D79: =SUM(D56:D78) -> 15
C80: Multiplication of the number of criteria met by | D80: =D734 -> 0.2352941176
C81: Maximum total | D81: =D80*B78 -> 3.529411765
C82: Points total | D82: =D80*D79 -> 3.529411765
C84: Comments
C87: 3. Telephone
E88: Comments
A89: 30 | B89: 1 | C89: Waiting time (3*S - 1 min.; 4*S - 30 seconds; 5*/5*S - 15 seconds) | D89: 1
A90: 31 | B90: 2 | C90: Text or sound recordings during the waiting time | D90: 1
A91: 32 | B91: 3 | C91: Cordiality | D91: 1
A92: 33 | B92: 4 | C92: Clear voice and pronounciation | D92: 1
A93: 34 | B93: 5 | C93: Addressed by name | D93: 1
A94: 35 | B94: 6 | C94: All data compiled (e.g. address, telephone, e-mail request) | D94: 1
A95: 36 | B95: 7 | C95: Professional competency | D95: 1
A96: 37 | B96: 8 | C96: Arrival and departure dates repeated and confirmed | D96: 1
A97: 38 | B97: 9 | C97: Information about categories | D97: 1
A98: 39 | B98: 10 | C98: Information about prices | D98: 1
A99: 40 | B99: 11 | C99: Information about forms of payment | D99: 1
A100: 41 | B100: 12 | C100: Information about services | D100: 1
A101: 42 | B101: 13 | C101: Information about check-in times | D101: 1
A102: 43 | B102: 14 | C102: Information about additional offers | D102: 1
A103: 44 | B103: 15 | C103: Arrival directions | D103: 1
A104: 45 | B104: 16 | C104: Offer of a provisional booking | D104: 1
A105: 46 | B105: 17 | C105: Reference to the cancellation conditions | D105: 1
A106: 47 | B106: 18 | C106: Friendly goodbye and thanks | D106: 1
C107: Number of criteria met | D107: =SUM(D89:D106) -> 18
C108: Multiplication of the number of criteria met by | D108: =D734 -> 0.2352941176
C109: Maximum total | D109: =D108*B106 -> 4.235294118
C110: Points total | D110: =D108*D107 -> 4.235294118
C112: Comments
C115: 4. Arrival and outdoor facilities
E116: Comments
A117: 48 | B117: 1 | C117: Easy to find (e.g. signposted) | D117: 1
A118: 49 | B118: 2 | C118: Access options | D118: 1
A119: 50 | B119: 3 | C119: Parking spaces | D119: 1
A120: 51 | B120: 4 | C120: Garage parking spaces | D120: 1
A121: 52 | B121: 5 | C121: Lighting | D121: 1
A122: 53 | B122: 6 | C122: Luggage service | D122: 1
A123: 54 | B123: 7 | C123: Easy orientation | D123: 1
A124: 55 | B124: 8 | C124: Cleanliness and condition | D124: 1
A125: 56 | B125: 9 | C125: Parking service (e.g. doorman, valet) | D125: 1
C126: Number of criteria met | D126: =SUM(D117:D125) -> 9
C127: Multiplication of the number of criteria met by | D127: =D734 -> 0.2352941176
C128: Maximum total | D128: =D127*B125 -> 2.117647059
C129: Points total | D129: =D127*D126 -> 2.117647059
C131: Comments
C134: 5. Check-in
C136: Reception | E136: Comments
A137: 57 | B137: 1 | C137: Room climate (odour) | D137: 1
A138: 58 | B138: 2 | C138: Room temperature | D138: 1
A139: 59 | B139: 3 | C139: Sufficient lighting | D139: 1
A140: 60 | B140: 4 | C140: Ambience/atmosphere | D140: 1
A141: 61 | B141: 5 | C141: Furniture of an appropriate quality | D141: 1
A142: 62 | B142: 6 | C142: Clean and tidy | D142: 1
A143: 63 | B143: 7 | C143: Matching decorations | D143: 1
A144: 64 | B144: 8 | C144: Generous seating area for guests | D144: 1
A145: 65 | B145: 9 | C145: Appearance of the check-in area (front office - clean and tidy) | D145: 1
C149: Front office staff | E149: Comments
A150: 66 | B150: 10 | C150: Attendance | D150: 1
A151: 67 | B151: 11 | C151: Greeting (e.g. welcome drink) | D151: 1
A152: 68 | B152: 12 | C152: Cordiality and friendliness | D152: 1
A153: 69 | B153: 13 | C153: Appearance of the employees (e.g. uniform, name tag) | D153: 1
A154: 70 | B154: 14 | C154: Professional competency | D154: 1
A155: 71 | B155: 15 | C155: Knowledge of foreign languages | D155: 1
A156: 72 | B156: 16 | C156: Attentiveness | D156: 1
A157: 73 | B157: 17 | C157: Attention to detail | D157: 1
A158: 74 | B158: 18 | C158: Efficiency (speed and flexibility) | D158: 1
A159: 75 | B159: 19 | C159: Readiness to help | D159: 1
A160: 76 | B160: 20 | C160: Clear, easy to understand pronounciation | D160: 1
A161: 77 | B161: 21 | C161: Guest addressed by name | D161: 1
A162: 78 | B162: 22 | C162: Pre-prepared registration form | D162: 1
A163: 79 | B163: 23 | C163: Luggage service offered | D163: 1
A164: 80 | B164: 24 | C164: Offer of escorting to the room | D164: 1
A165: 81 | B165: 25 | C165: General site information offered or provided | D165: 1
A166: 82 | B166: 26 | C166: Pleasant stay wished | D166: 1
C170: Escort to the room | E170: Comments
A171: 83 | B171: 27 | C171: Appearance of the employee | D171: 1
A172: 84 | B172: 28 | C172: Friendliness, conversation | D172: 1
C176: Room information | E176: Comments
A177: 85 | B177: 29 | C177: Indication of the main switch (for power in the room) | D177: 1
A178: 86 | B178: 30 | C178: Indication of the heating or air-conditioning | D178: 1
A179: 87 | B179: 31 | C179: Telephone (written information sufficient) | D179: 1
A180: 88 | B180: 32 | C180: Telephone book or numbers (for room service) - written information sufficient | D180: 1
A181: 89 | B181: 33 | C181: Minibar (written information sufficient) | D181: 1
A182: 90 | B182: 34 | C182: Safe (written information sufficient) | D182: 1
A183: 91 | B183: 35 | C183: Laundry service (written information sufficient) | D183: 1
A184: 92 | B184: 36 | C184: Ironing service (written information sufficient) | D184: 1
A185: 93 | B185: 37 | C185: Opening hours of the restaurant and bar (written information sufficient) | D185: 1
A186: 94 | B186: 38 | C186: Breakfast times (written information sufficient) | D186: 1
A187: 95 | B187: 39 | C187: Reception available 24 hours and attended for … hours (3*S - 14; 4*S - 18; 5*/5*S - 24) | D187: 1
C188: Number of criteria met | D188: =SUM(D137:D187) -> 39
C189: Multiplication of the number of criteria met by | D189: =D734 -> 0.2352941176
C190: Maximum total | D190: =D189*B187 -> 9.176470588
C191: Points total | D191: =D189*D188 -> 9.176470588
C193: Comments
C196: 6. Rooms
C198: First impression and general character | E198: Comments
A199: 96 | B199: 1 | C199: Room climate (fresh odour) | D199: 1
A200: 97 | B200: 2 | C200: Pleasant temperature | D200: 1
A201: 98 | B201: 3 | C201: Atmosphere (well-being) | D201: 1
A202: 99 | B202: 4 | C202: Noise level (quiet) | D202: 1
A203: 100 | B203: 5 | C203: Corresponding furniture | D203: 1
A204: 101 | B204: 6 | C204: Cleanliness | D204: 1
A205: 102 | B205: 7 | C205: Welcome letter / card | D205: 1
A206: 103 | B206: 8 | C206: Greeting (e.g. flours, fruit, confectionary ...) | D206: 1
A207: 104 | B207: 9 | C207: Door lock working properly | D207: 1
C211: The bed | E211: Comments
A212: 105 | B212: 10 | C212: Suitable for the hotel standard | D212: 1
A213: 106 | B213: 11 | C213: Quality of the bed sheets is appropriate | D213: 1
A214: 107 | B214: 12 | C214: Mattress/lying comfort | D214: 1
A215: 108 | B215: 13 | C215: Bed sheets suitable for the time of year | D215: 1
A216: 109 | B216: 14 | C216: Additional pillows available on request | D216: 1
A217: 110 | B217: 15 | C217: Additional bed sheets available on request | D217: 1
A218: 111 | B218: 16 | C218: Two pillows per guest | D218: 1
A219: 112 | B219: 17 | C219: Selection of different pillows (e.g. anti-allergy) | D219: 1
C221: Furniture | E221: Comments
A222: 113 | B222: 18 | C222: Quality and condition of the curtains | D222: 1
A223: 114 | B223: 19 | C223: Darkening possible with the curtains | D223: 1
A224: 115 | B224: 20 | C224: Switches and sockets easy to reach | D224: 1
A225: 116 | B225: 21 | C225: Defect-free walls | D225: 1
A226: 117 | B226: 22 | C226: Defect-free lighting | D226: 1
A227: 118 | B227: 23 | C227: Defect-free furniture | D227: 1
A228: 119 | B228: 24 | C228: Suitable number of uniform hangers (no wire hangers) | D228: 1
A229: 120 | B229: 25 | C229: Spacious storage area | D229: 1
A230: 121 | B230: 26 | C230: Spacious hanging area in the wardrobes | D230: 1
C234: Equipment and services | E234: Comments
A235: 122 | B235: 27 | C235: Radio and TV programs properly set | D235: 1
A236: 123 | B236: 28 | C236: List of programs available | D236: 1
A237: 124 | B237: 29 | C237: Current television guide displayed | D237: 1
A238: 125 | B238: 30 | C238: Writing folder with writing utensils | D238: 1
A239: 126 | B239: 31 | C239: Telephone with the option of make internal and external calls | D239: 1
A240: 127 | B240: 32 | C240: Multi-lingual operating instructions for the telephone | D240: 1
A241: 128 | B241: 33 | C241: Writing pad and pencil next to the phone | D241: 1
A242: 129 | B242: 34 | C242: Working modem connection (or equivalent Internet connection available for the guest) | D242: 1
A243: 130 | B243: 35 | C243: Internet connection in the room (wireless or plug-in) | D243: 1
A244: 131 | B244: 36 | C244: PC with internet available in the room on request | D244: 1
A245: 132 | B245: 37 | C245: Proper functioning of all electrical equipment (e.g. lights, TV and hair dryer) | D245: 1
A246: 133 | B246: 38 | C246: Safe in the room | D246: 1
A247: 134 | B247: 39 | C247: Alarm (or an alarm function on the TV or telephone) | D247: 1
A248: 135 | B248: 40 | C248: Alternative alarm service (reliability, friendliness) | D248: 1
A249: 136 | B249: 41 | C249: "Do not disturb/please clean" sign available | D249: 1
A250: 137 | B250: 42 | C250: Condition and up-to-date status of the information folder | D250: 1
A251: 138 | B251: 43 | C251: Safety instructions (e.g. fire protection, emergency escape routes) visible | D251: 1
A252: 139 | B252: 44 | C252: Room prices on display or in the information folder | D252: 1
A253: 140 | B253: 45 | C253: Guest mazagine laid out | D253: 1
A254: 141 | B254: 46 | C254: Newspaper and magazine service | D254: 1
A255: 142 | B255: 47 | C255: Service manual | D255: 1
A256: 143 | B256: 48 | C256: Multi-lingual service manual | D256: 1
A257: 144 | B257: 49 | C257: At least two drinking glasses on coasters (e.g. serviettes) | D257: 1
A258: 145 | B258: 50 | C258: Drinks from room service | D258: 1
A259: 146 | B259: 51 | C259: Food from room service | D259: 1
A260: 147 | B260: 52 | C260: Breakfest menu from room service | D260: 1
A261: 148 | B261: 53 | C261: Laundry service | D261: 1
A262: 149 | B262: 54 | C262: Ironing service | D262: 1
... 385 more rows

Sheet spa
C7: Austrian Professional Hotel Association
C11: Questionnaire Mystery Guest check
C18: Working document, 13.10.2010
C24: This is a list of the necessary test criteria for companies which want to carry out a mystery test within the scope of the Austrian hotel classification. The steering commission or the Austrian Professional Hotel Association, respectively, will make the final decision about the company's listing after checking the prerequisites.
C26: positively met criteria | D26: 1
C27: negatively met criteria | D27: 0
C30: 1. Website
E31: Comments
A32: 1 | B32: 1 | C32: Clear website address | D32: 1
A33: 2 | B33: 2 | C33: All links working | D33: 1
A34: 3 | B34: 3 | C34: Clear arrangement | D34: 1
A35: 4 | B35: 4 | C35: Search function | D35: 1
A36: 5 | B36: 5 | C36: Integrated guest feedback | D36: 1
A37: 6 | B37: 6 | C37: Typing, spelling and grammar errors | D37: 1
A38: 7 | B38: 7 | C38: Informative, realistic presence with hotel pictures | D38: 1
A39: 8 | B39: 8 | C39: Up-to-date | D39: 1
A40: 9 | B40: 9 | C40: Legal information | D40: 1
A41: 10 | B41: 10 | C41: English translation | D41: 1
A42: 11 | B42: 11 | C42: Contact details (e-mail, telephone, etc.) | D42: 1
A43: 12 | B43: 12 | C43: Online booking on own website | D43: 1
A44: 13 | B44: 13 | C44: Directions / Map | D44: 1
A45: 14 | B45: 14 | C45: General Terms and Conditions or cancellation conditions available | D45: 1
C46: Number of criteria met | D46: =SUM(D32:D45) -> 14
C47: Multiplication of the number of criteria met by | D47: =D696 -> 0.2487562189
C48: Maximum total | D48: =D47*B45 -> 3.482587065
C49: Points total | D49: =D46*D47 -> 3.482587065
C51: Comments
C53: 2. E-mail and mail
C55: Response to your e-mail request, | E55: Comments
A56: 15 | B56: 1 | C56: Within … hours of the request (3*S - 12; 4*S - 8; 5*/5*S - 4) | D56: 1
A57: 16 | B57: 2 | C57: Quality (writing style, choice of words, correct form of address, spelling) | D57: 1
A58: 17 | B58: 3 | C58: Information content (e.g. additional offers) | D58: 1
A59: 18 | B59: 4 | C59: Individual processing | D59: 1
A60: 19 | B60: 5 | C60: In case of an offer: details about the cancellation conditions | D60: 1
C64: Reservation confirmation (e-mail, fax) as as response to your booking | E64: Comments
A65: 20 | B65: 6 | C65: Within … hours of the reservation (3*S - 24; 4*S - 12; 5*/5*S - 8) | D65: 1
A66: 21 | B66: 7 | C66: Quality (writing style, choice of words, correct form of address, spelling) | D66: 1
A67: 22 | B67: 8 | C67: Information content (including the current directions / map) | D67: 1
A68: 23 | B68: 9 | C68: Information about the cancellation conditions | D68: 1
C72: Documents sent by post | E72: Comments
A73: 24 | B73: 10 | C73: Delivery within 3 working days | D73: 1
A74: 25 | B74: 11 | C74: Cover letter | D74: 1
A75: 26 | B75: 12 | C75: Quality (writing style, choice of words, correct form of address, spelling) | D75: 1
A76: 27 | B76: 13 | C76: Information content (e.g. additional offers), | D76: 1
A77: 28 | B77: 14 | C77: Individual processing | D77: 1
A78: 29 | B78: 15 | C78: Corresponding qualitative documents and leaflets | D78: 1
C79: Number of criteria met | D79: =SUM(D56:D78) -> 15
C80: Multiplication of the number of criteria met by | D80: =D696 -> 0.2487562189
C81: Maximum total | D81: =D80*B78 -> 3.731343284
C82: Points total | D82: =D80*D79 -> 3.731343284
C84: Comments
C87: 3. Telephone
E88: Comments
A89: 30 | B89: 1 | C89: Waiting time (3*S - 1 min.; 4*S - 30 seconds; 5*/5*S - 15 seconds) | D89: 1
A90: 31 | B90: 2 | C90: Text or sound recordings during the waiting time | D90: 1
A91: 32 | B91: 3 | C91: Cordiality | D91: 1
A92: 33 | B92: 4 | C92: Clear voice and pronounciation | D92: 1
A93: 34 | B93: 5 | C93: Addressed by name | D93: 1
A94: 35 | B94: 6 | C94: All data compiled (e.g. address, telephone, e-mail request) | D94: 1
A95: 36 | B95: 7 | C95: Professional competency | D95: 1
A96: 37 | B96: 8 | C96: Arrival and departure dates repeated and confirmed | D96: 1
A97: 38 | B97: 9 | C97: Information about categories | D97: 1
A98: 39 | B98: 10 | C98: Information about prices | D98: 1
A99: 40 | B99: 11 | C99: Information about forms of payment | D99: 1
A100: 41 | B100: 12 | C100: Information about services | D100: 1
A101: 42 | B101: 13 | C101: Information about check-in times | D101: 1
A102: 43 | B102: 14 | C102: Information about additional offers | D102: 1
A103: 44 | B103: 15 | C103: Arrival directions | D103: 1
A104: 45 | B104: 16 | C104: Offer of a provisional booking | D104: 1
A105: 46 | B105: 17 | C105: Reference to the cancellation conditions | D105: 1
A106: 47 | B106: 18 | C106: Friendly goodbye and thanks | D106: 1
C107: Number of criteria met | D107: =SUM(D89:D106) -> 18
C108: Multiplication of the number of criteria met by | D108: =D696 -> 0.2487562189
C109: Maximum total | D109: =D108*B106 -> 4.47761194
C110: Points total | D110: =D108*D107 -> 4.47761194
C112: Comments
C115: 4. Arrival and outdoor facilities
E116: Comments
A117: 48 | B117: 1 | C117: Easy to find (e.g. signposted) | D117: 1
A118: 49 | B118: 2 | C118: Access options | D118: 1
A119: 50 | B119: 3 | C119: Parking spaces | D119: 1
A120: 51 | B120: 4 | C120: Garage parking spaces | D120: 1
A121: 52 | B121: 5 | C121: Lighting | D121: 1
A122: 53 | B122: 6 | C122: Luggage service | D122: 1
A123: 54 | B123: 7 | C123: Easy orientation | D123: 1
A124: 55 | B124: 8 | C124: Cleanliness and condition | D124: 1
A125: 56 | B125: 9 | C125: Parking service (e.g. doorman, valet) | D125: 1
C126: Number of criteria met | D126: =SUM(D117:D125) -> 9
C127: Multiplication of the number of criteria met by | D127: =D696 -> 0.2487562189
C128: Maximum total | D128: =D127*B125 -> 2.23880597
C129: Points total | D129: =D127*D126 -> 2.23880597
C131: Comments
C134: 5. Check-in
C136: Reception | E136: Comments
A137: 57 | B137: 1 | C137: Room climate (odour) | D137: 1
A138: 58 | B138: 2 | C138: Room temperature | D138: 1
A139: 59 | B139: 3 | C139: Sufficient lighting | D139: 1
A140: 60 | B140: 4 | C140: Ambience/atmosphere | D140: 1
A141: 61 | B141: 5 | C141: Furniture of an appropriate quality | D141: 1
A142: 62 | B142: 6 | C142: Clean and tidy | D142: 1
A143: 63 | B143: 7 | C143: Matching decorations | D143: 1
A144: 64 | B144: 8 | C144: Generous seating area for guests | D144: 1
A145: 65 | B145: 9 | C145: Appearance of the check-in area (front office - clean and tidy) | D145: 1
C149: Front office staff | E149: Comments
A150: 66 | B150: 10 | C150: Attendance | D150: 1
A151: 67 | B151: 11 | C151: Greeting (e.g. welcome drink) | D151: 1
A152: 68 | B152: 12 | C152: Cordiality and friendliness | D152: 1
A153: 69 | B153: 13 | C153: Appearance of the employees (e.g. uniform, name tag) | D153: 1
A154: 70 | B154: 14 | C154: Professional competency | D154: 1
A155: 71 | B155: 15 | C155: Knowledge of foreign languages | D155: 1
A156: 72 | B156: 16 | C156: Attentiveness | D156: 1
A157: 73 | B157: 17 | C157: Attention to detail | D157: 1
A158: 74 | B158: 18 | C158: Efficiency (speed and flexibility) | D158: 1
A159: 75 | B159: 19 | C159: Readiness to help | D159: 1
A160: 76 | B160: 20 | C160: Clear, easy to understand pronounciation | D160: 1
A161: 77 | B161: 21 | C161: Guest addressed by name | D161: 1
A162: 78 | B162: 22 | C162: Pre-prepared registration form | D162: 1
A163: 79 | B163: 23 | C163: Luggage service offered | D163: 1
A164: 80 | B164: 24 | C164: Offer of escorting to the room | D164: 1
A165: 81 | B165: 25 | C165: General site information offered or provided | D165: 1
A166: 82 | B166: 26 | C166: Pleasant stay wished | D166: 1
C170: Escort to the room | E170: Comments
A171: 83 | B171: 27 | C171: Appearance of the employee | D171: 1
A172: 84 | B172: 28 | C172: Friendliness, conversation | D172: 1
C176: Room information | E176: Comments
A177: 85 | B177: 29 | C177: Indication of the main switch (for power in the room) | D177: 1
A178: 86 | B178: 30 | C178: Indication of the heating or air-conditioning | D178: 1
A179: 87 | B179: 31 | C179: Telephone (written information sufficient) | D179: 1
A180: 88 | B180: 32 | C180: Telephone book or numbers (for room service) - written information sufficient | D180: 1
A181: 89 | B181: 33 | C181: Minibar (written information sufficient) | D181: 1
A182: 90 | B182: 34 | C182: Safe (written information sufficient) | D182: 1
A183: 91 | B183: 35 | C183: Laundry service (written information sufficient) | D183: 1
A184: 92 | B184: 36 | C184: Ironing service (written information sufficient) | D184: 1
A185: 93 | B185: 37 | C185: Opening hours of the restaurant and bar (written information sufficient) | D185: 1
A186: 94 | B186: 38 | C186: Breakfast times (written information sufficient) | D186: 1
A187: 95 | B187: 39 | C187: Reception available 24 hours and attended for … hours (3*S - 14; 4*S - 18; 5*/5*S - 24) | D187: 1
C188: Number of criteria met | D188: =SUM(D137:D187) -> 39
C189: Multiplication of the number of criteria met by | D189: =D696 -> 0.2487562189
C190: Maximum total | D190: =D189*B187 -> 9.701492537
C191: Points total | D191: =D189*D188 -> 9.701492537
C193: Comments
C196: 6. Rooms
C198: First impression and general character | E198: Comments
A199: 96 | B199: 1 | C199: Room climate (fresh odour) | D199: 1
A200: 97 | B200: 2 | C200: Pleasant temperature | D200: 1
A201: 98 | B201: 3 | C201: Atmosphere (well-being) | D201: 1
A202: 99 | B202: 4 | C202: Noise level (quiet) | D202: 1
A203: 100 | B203: 5 | C203: Corresponding furniture | D203: 1
A204: 101 | B204: 6 | C204: Cleanliness | D204: 1
A205: 102 | B205: 7 | C205: Welcome letter / card | D205: 1
A206: 103 | B206: 8 | C206: Greeting (e.g. flours, fruit, confectionary ...) | D206: 1
A207: 104 | B207: 9 | C207: Door lock working properly | D207: 1
C211: The bed | E211: Comments
A212: 105 | B212: 10 | C212: Suitable for the hotel standard | D212: 1
A213: 106 | B213: 11 | C213: Quality of the bed sheets is appropriate | D213: 1
A214: 107 | B214: 12 | C214: Mattress/lying comfort | D214: 1
A215: 108 | B215: 13 | C215: Bed sheets suitable for the time of year | D215: 1
A216: 109 | B216: 14 | C216: Additional pillows available on request | D216: 1
A217: 110 | B217: 15 | C217: Additional bed sheets available on request | D217: 1
A218: 111 | B218: 16 | C218: Two pillows per guest | D218: 1
A219: 112 | B219: 17 | C219: Selection of different pillows (e.g. anti-allergy) | D219: 1
C221: Furniture | E221: Comments
A222: 113 | B222: 18 | C222: Quality and condition of the curtains | D222: 1
A223: 114 | B223: 19 | C223: Darkening possible with the curtains | D223: 1
A224: 115 | B224: 20 | C224: Switches and sockets easy to reach | D224: 1
A225: 116 | B225: 21 | C225: Defect-free walls | D225: 1
A226: 117 | B226: 22 | C226: Defect-free lighting | D226: 1
A227: 118 | B227: 23 | C227: Defect-free furniture | D227: 1
A228: 119 | B228: 24 | C228: Suitable number of uniform hangers (no wire hangers) | D228: 1
A229: 120 | B229: 25 | C229: Spacious storage area | D229: 1
A230: 121 | B230: 26 | C230: Spacious hanging area in the wardrobes | D230: 1
C234: Equipment and services | E234: Comments
A235: 122 | B235: 27 | C235: Radio and TV programs properly set | D235: 1
A236: 123 | B236: 28 | C236: List of programs available | D236: 1
A237: 124 | B237: 29 | C237: Current television guide displayed | D237: 1
A238: 125 | B238: 30 | C238: Writing folder with writing utensils | D238: 1
A239: 126 | B239: 31 | C239: Telephone with the option of make internal and external calls | D239: 1
A240: 127 | B240: 32 | C240: Multi-lingual operating instructions for the telephone | D240: 1
A241: 128 | B241: 33 | C241: Writing pad and pencil next to the phone | D241: 1
A242: 129 | B242: 34 | C242: Working modem connection (or equivalent Internet connection available for the guest) | D242: 1
A243: 130 | B243: 35 | C243: Internet connection in the room (wireless or plug-in) | D243: 1
A244: 131 | B244: 36 | C244: PC with internet available in the room on request | D244: 1
A245: 132 | B245: 37 | C245: Proper functioning of all electrical equipment (e.g. lights, TV and hair dryer) | D245: 1
A246: 133 | B246: 38 | C246: Safe in the room | D246: 1
A247: 134 | B247: 39 | C247: Alarm (or an alarm function on the TV or telephone) | D247: 1
A248: 135 | B248: 40 | C248: Alternative alarm service (reliability, friendliness) | D248: 1
A249: 136 | B249: 41 | C249: "Do not disturb/please clean" sign available | D249: 1
A250: 137 | B250: 42 | C250: Condition and up-to-date status of the information folder | D250: 1
A251: 138 | B251: 43 | C251: Safety instructions (e.g. fire protection, emergency escape routes) visible | D251: 1
A252: 139 | B252: 44 | C252: Room prices on display or in the information folder | D252: 1
A253: 140 | B253: 45 | C253: Guest mazagine laid out | D253: 1
A254: 141 | B254: 46 | C254: Newspaper and magazine service | D254: 1
A255: 142 | B255: 47 | C255: Service manual | D255: 1
A256: 143 | B256: 48 | C256: Multi-lingual service manual | D256: 1
A257: 144 | B257: 49 | C257: At least two drinking glasses on coasters (e.g. serviettes) | D257: 1
A258: 145 | B258: 50 | C258: Drinks from room service | D258: 1
A259: 146 | B259: 51 | C259: Food from room service | D259: 1
A260: 147 | B260: 52 | C260: Breakfest menu from room service | D260: 1
A261: 148 | B261: 53 | C261: Laundry service | D261: 1
A262: 149 | B262: 54 | C262: Ironing service | D262: 1
... 354 more rows

Sheet leisure
C7: Austrian Professional Hotel Association
C11: Questionnaire Mystery Guest check
C18: Working document, 13.10.2010
C24: This is a list of the necessary test criteria for companies which want to carry out a mystery test within the scope of the Austrian hotel classification. The steering commission or the Austrian Professional Hotel Association, respectively, will make the final decision about the company's listing after checking the prerequisites.
C26: positively met criteria | D26: 1
C27: negatively met criteria | D27: 0
C30: 1. Website
E31: Comments
A32: 1 | B32: 1 | C32: Clear website address | D32: 1
A33: 2 | B33: 2 | C33: All links working | D33: 1
A34: 3 | B34: 3 | C34: Clear arrangement | D34: 1
A35: 4 | B35: 4 | C35: Search function | D35: 1
A36: 5 | B36: 5 | C36: Integrated guest feedback | D36: 1
A37: 6 | B37: 6 | C37: Typing, spelling and grammar errors | D37: 1
A38: 7 | B38: 7 | C38: Informative, realistic presence with hotel pictures | D38: 1
A39: 8 | B39: 8 | C39: Up-to-date | D39: 1
A40: 9 | B40: 9 | C40: Legal information | D40: 1
A41: 10 | B41: 10 | C41: English translation | D41: 1
A42: 11 | B42: 11 | C42: Contact details (e-mail, telephone, etc.) | D42: 1
A43: 12 | B43: 12 | C43: Online booking on own website | D43: 1
A44: 13 | B44: 13 | C44: Directions / Map | D44: 1
A45: 14 | B45: 14 | C45: General Terms and Conditions or cancellation conditions available | D45: 1
C46: Number of criteria met | D46: =SUM(D32:D45) -> 14
C47: Multiplication of the number of criteria met by | D47: =D696 -> 0.2487562189
C48: Maximum total | D48: =D47*B45 -> 3.482587065
C49: Points total | D49: =D46*D47 -> 3.482587065
C51: Comments
C53: 2. E-mail and mail
C55: Response to your e-mail request, | E55: Comments
A56: 15 | B56: 1 | C56: Within … hours of the request (3*S - 12; 4*S - 8; 5*/5*S - 4) | D56: 1
A57: 16 | B57: 2 | C57: Quality (writing style, choice of words, correct form of address, spelling) | D57: 1
A58: 17 | B58: 3 | C58: Information content (e.g. additional offers) | D58: 1
A59: 18 | B59: 4 | C59: Individual processing | D59: 1
A60: 19 | B60: 5 | C60: In case of an offer: details about the cancellation conditions | D60: 1
C64: Reservation confirmation (e-mail, fax) as as response to your booking | E64: Comments
A65: 20 | B65: 6 | C65: Within … hours of the reservation (3*S - 24; 4*S - 12; 5*/5*S - 8) | D65: 1
A66: 21 | B66: 7 | C66: Quality (writing style, choice of words, correct form of address, spelling) | D66: 1
A67: 22 | B67: 8 | C67: Information content (including the current directions / map) | D67: 1
A68: 23 | B68: 9 | C68: Information about the cancellation conditions | D68: 1
C72: Documents sent by post | E72: Comments
A73: 24 | B73: 10 | C73: Delivery within 3 working days | D73: 1
A74: 25 | B74: 11 | C74: Cover letter | D74: 1
A75: 26 | B75: 12 | C75: Quality (writing style, choice of words, correct form of address, spelling) | D75: 1
A76: 27 | B76: 13 | C76: Information content (e.g. additional offers), | D76: 1
A77: 28 | B77: 14 | C77: Individual processing | D77: 1
A78: 29 | B78: 15 | C78: Corresponding qualitative documents and leaflets | D78: 1
C79: Number of criteria met | D79: =SUM(D56:D78) -> 15
C80: Multiplication of the number of criteria met by | D80: =D696 -> 0.2487562189
C81: Maximum total | D81: =D80*B78 -> 3.731343284
C82: Points total | D82: =D80*D79 -> 3.731343284
C84: Comments
C87: 3. Telephone
E88: Comments
A89: 30 | B89: 1 | C89: Waiting time (3*S - 1 min.; 4*S - 30 seconds; 5*/5*S - 15 seconds) | D89: 1
A90: 31 | B90: 2 | C90: Text or sound recordings during the waiting time | D90: 1
A91: 32 | B91: 3 | C91: Cordiality | D91: 1
A92: 33 | B92: 4 | C92: Clear voice and pronounciation | D92: 1
A93: 34 | B93: 5 | C93: Addressed by name | D93: 1
A94: 35 | B94: 6 | C94: All data compiled (e.g. address, telephone, e-mail request) | D94: 1
A95: 36 | B95: 7 | C95: Professional competency | D95: 1
A96: 37 | B96: 8 | C96: Arrival and departure dates repeated and confirmed | D96: 1
A97: 38 | B97: 9 | C97: Information about categories | D97: 1
A98: 39 | B98: 10 | C98: Information about prices | D98: 1
A99: 40 | B99: 11 | C99: Information about forms of payment | D99: 1
A100: 41 | B100: 12 | C100: Information about services | D100: 1
A101: 42 | B101: 13 | C101: Information about check-in times | D101: 1
A102: 43 | B102: 14 | C102: Information about additional offers | D102: 1
A103: 44 | B103: 15 | C103: Arrival directions | D103: 1
A104: 45 | B104: 16 | C104: Offer of a provisional booking | D104: 1
A105: 46 | B105: 17 | C105: Reference to the cancellation conditions | D105: 1
A106: 47 | B106: 18 | C106: Friendly goodbye and thanks | D106: 1
C107: Number of criteria met | D107: =SUM(D89:D106) -> 18
C108: Multiplication of the number of criteria met by | D108: =D696 -> 0.2487562189
C109: Maximum total | D109: =D108*B106 -> 4.47761194
C110: Points total | D110: =D108*D107 -> 4.47761194
C112: Comments
C115: 4. Arrival and outdoor facilities
E116: Comments
A117: 48 | B117: 1 | C117: Easy to find (e.g. signposted) | D117: 1
A118: 49 | B118: 2 | C118: Access options | D118: 1
A119: 50 | B119: 3 | C119: Parking spaces | D119: 1
A120: 51 | B120: 4 | C120: Garage parking spaces | D120: 1
A121: 52 | B121: 5 | C121: Lighting | D121: 1
A122: 53 | B122: 6 | C122: Luggage service | D122: 1
A123: 54 | B123: 7 | C123: Easy orientation | D123: 1
A124: 55 | B124: 8 | C124: Cleanliness and condition | D124: 1
A125: 56 | B125: 9 | C125: Parking service (e.g. doorman, valet) | D125: 1
C126: Number of criteria met | D126: =SUM(D117:D125) -> 9
C127: Multiplication of the number of criteria met by | D127: =D696 -> 0.2487562189
C128: Maximum total | D128: =D127*B125 -> 2.23880597
C129: Points total | D129: =D127*D126 -> 2.23880597
C131: Comments
C134: 5. Check-in
C136: Reception | E136: Comments
A137: 57 | B137: 1 | C137: Room climate (odour) | D137: 1
A138: 58 | B138: 2 | C138: Room temperature | D138: 1
A139: 59 | B139: 3 | C139: Sufficient lighting | D139: 1
A140: 60 | B140: 4 | C140: Ambience/atmosphere | D140: 1
A141: 61 | B141: 5 | C141: Furniture of an appropriate quality | D141: 1
A142: 62 | B142: 6 | C142: Clean and tidy | D142: 1
A143: 63 | B143: 7 | C143: Matching decorations | D143: 1
A144: 64 | B144: 8 | C144: Generous seating area for guests | D144: 1
A145: 65 | B145: 9 | C145: Appearance of the check-in area (front office - clean and tidy) | D145: 1
C149: Front office staff | E149: Comments
A150: 66 | B150: 10 | C150: Attendance | D150: 1
A151: 67 | B151: 11 | C151: Greeting (e.g. welcome drink) | D151: 1
A152: 68 | B152: 12 | C152: Cordiality and friendliness | D152: 1
A153: 69 | B153: 13 | C153: Appearance of the employees (e.g. uniform, name tag) | D153: 1
A154: 70 | B154: 14 | C154: Professional competency | D154: 1
A155: 71 | B155: 15 | C155: Knowledge of foreign languages | D155: 1
A156: 72 | B156: 16 | C156: Attentiveness | D156: 1
A157: 73 | B157: 17 | C157: Attention to detail | D157: 1
A158: 74 | B158: 18 | C158: Efficiency (speed and flexibility) | D158: 1
A159: 75 | B159: 19 | C159: Readiness to help | D159: 1
A160: 76 | B160: 20 | C160: Clear, easy to understand pronounciation | D160: 1
A161: 77 | B161: 21 | C161: Guest addressed by name | D161: 1
A162: 78 | B162: 22 | C162: Pre-prepared registration form | D162: 1
A163: 79 | B163: 23 | C163: Luggage service offered | D163: 1
A164: 80 | B164: 24 | C164: Offer of escorting to the room | D164: 1
A165: 81 | B165: 25 | C165: General site information offered or provided | D165: 1
A166: 82 | B166: 26 | C166: Pleasant stay wished | D166: 1
C170: Escort to the room | E170: Comments
A171: 83 | B171: 27 | C171: Appearance of the employee | D171: 1
A172: 84 | B172: 28 | C172: Friendliness, conversation | D172: 1
C176: Room information | E176: Comments
A177: 85 | B177: 29 | C177: Indication of the main switch (for power in the room) | D177: 1
A178: 86 | B178: 30 | C178: Indication of the heating or air-conditioning | D178: 1
A179: 87 | B179: 31 | C179: Telephone (written information sufficient) | D179: 1
A180: 88 | B180: 32 | C180: Telephone book or numbers (for room service) - written information sufficient | D180: 1
A181: 89 | B181: 33 | C181: Minibar (written information sufficient) | D181: 1
A182: 90 | B182: 34 | C182: Safe (written information sufficient) | D182: 1
A183: 91 | B183: 35 | C183: Laundry service (written information sufficient) | D183: 1
A184: 92 | B184: 36 | C184: Ironing service (written information sufficient) | D184: 1
A185: 93 | B185: 37 | C185: Opening hours of the restaurant and bar (written information sufficient) | D185: 1
A186: 94 | B186: 38 | C186: Breakfast times (written information sufficient) | D186: 1
A187: 95 | B187: 39 | C187: Reception available 24 hours and attended for … hours (3*S - 14; 4*S - 18; 5*/5*S - 24) | D187: 1
C188: Number of criteria met | D188: =SUM(D137:D187) -> 39
C189: Multiplication of the number of criteria met by | D189: =D696 -> 0.2487562189
C190: Maximum total | D190: =D189*B187 -> 9.701492537
C191: Points total | D191: =D189*D188 -> 9.701492537
C193: Comments
C196: 6. Rooms
C198: First impression and general character | E198: Comments
A199: 96 | B199: 1 | C199: Room climate (fresh odour) | D199: 1
A200: 97 | B200: 2 | C200: Pleasant temperature | D200: 1
A201: 98 | B201: 3 | C201: Atmosphere (well-being) | D201: 1
A202: 99 | B202: 4 | C202: Noise level (quiet) | D202: 1
A203: 100 | B203: 5 | C203: Corresponding furniture | D203: 1
A204: 101 | B204: 6 | C204: Cleanliness | D204: 1
A205: 102 | B205: 7 | C205: Welcome letter / card | D205: 1
A206: 103 | B206: 8 | C206: Greeting (e.g. flours, fruit, confectionary ...) | D206: 1
A207: 104 | B207: 9 | C207: Door lock working properly | D207: 1
C211: The bed | E211: Comments
A212: 105 | B212: 10 | C212: Suitable for the hotel standard | D212: 1
A213: 106 | B213: 11 | C213: Quality of the bed sheets is appropriate | D213: 1
A214: 107 | B214: 12 | C214: Mattress/lying comfort | D214: 1
A215: 108 | B215: 13 | C215: Bed sheets suitable for the time of year | D215: 1
A216: 109 | B216: 14 | C216: Additional pillows available on request | D216: 1
A217: 110 | B217: 15 | C217: Additional bed sheets available on request | D217: 1
A218: 111 | B218: 16 | C218: Two pillows per guest | D218: 1
A219: 112 | B219: 17 | C219: Selection of different pillows (e.g. anti-allergy) | D219: 1
C221: Furniture | E221: Comments
A222: 113 | B222: 18 | C222: Quality and condition of the curtains | D222: 1
A223: 114 | B223: 19 | C223: Darkening possible with the curtains | D223: 1
A224: 115 | B224: 20 | C224: Switches and sockets easy to reach | D224: 1
A225: 116 | B225: 21 | C225: Defect-free walls | D225: 1
A226: 117 | B226: 22 | C226: Defect-free lighting | D226: 1
A227: 118 | B227: 23 | C227: Defect-free furniture | D227: 1
A228: 119 | B228: 24 | C228: Suitable number of uniform hangers (no wire hangers) | D228: 1
A229: 120 | B229: 25 | C229: Spacious storage area | D229: 1
A230: 121 | B230: 26 | C230: Spacious hanging area in the wardrobes | D230: 1
C234: Equipment and services | E234: Comments
A235: 122 | B235: 27 | C235: Radio and TV programs properly set | D235: 1
A236: 123 | B236: 28 | C236: List of programs available | D236: 1
A237: 124 | B237: 29 | C237: Current television guide displayed | D237: 1
A238: 125 | B238: 30 | C238: Writing folder with writing utensils | D238: 1
A239: 126 | B239: 31 | C239: Telephone with the option of make internal and external calls | D239: 1
A240: 127 | B240: 32 | C240: Multi-lingual operating instructions for the telephone | D240: 1
A241: 128 | B241: 33 | C241: Writing pad and pencil next to the phone | D241: 1
A242: 129 | B242: 34 | C242: Working modem connection (or equivalent Internet connection available for the guest) | D242: 1
A243: 130 | B243: 35 | C243: Internet connection in the room (wireless or plug-in) | D243: 1
A244: 131 | B244: 36 | C244: PC with internet available in the room on request | D244: 1
A245: 132 | B245: 37 | C245: Proper functioning of all electrical equipment (e.g. lights, TV and hair dryer) | D245: 1
A246: 133 | B246: 38 | C246: Safe in the room | D246: 1
A247: 134 | B247: 39 | C247: Alarm (or an alarm function on the TV or telephone) | D247: 1
A248: 135 | B248: 40 | C248: Alternative alarm service (reliability, friendliness) | D248: 1
A249: 136 | B249: 41 | C249: "Do not disturb/please clean" sign available | D249: 1
A250: 137 | B250: 42 | C250: Condition and up-to-date status of the information folder | D250: 1
A251: 138 | B251: 43 | C251: Safety instructions (e.g. fire protection, emergency escape routes) visible | D251: 1
A252: 139 | B252: 44 | C252: Room prices on display or in the information folder | D252: 1
A253: 140 | B253: 45 | C253: Guest mazagine laid out | D253: 1
A254: 141 | B254: 46 | C254: Newspaper and magazine service | D254: 1
A255: 142 | B255: 47 | C255: Service manual | D255: 1
A256: 143 | B256: 48 | C256: Multi-lingual service manual | D256: 1
A257: 144 | B257: 49 | C257: At least two drinking glasses on coasters (e.g. serviettes) | D257: 1
A258: 145 | B258: 50 | C258: Drinks from room service | D258: 1
A259: 146 | B259: 51 | C259: Food from room service | D259: 1
A260: 147 | B260: 52 | C260: Breakfest menu from room service | D260: 1
A261: 148 | B261: 53 | C261: Laundry service | D261: 1
A262: 149 | B262: 54 | C262: Ironing service | D262: 1
... 354 more rows

Sheet conference
C7: Austrian Professional Hotel Association
C11: Questionnaire Mystery Guest check
C18: Working document, 13.10.2010
C24: This is a list of the necessary test criteria for companies which want to carry out a mystery test within the scope of the Austrian hotel classification. The steering commission or the Austrian Professional Hotel Association, respectively, will make the final decision about the company's listing after checking the prerequisites.
C26: positively met criteria | D26: 1
C27: negatively met criteria | D27: 0
C30: 1. Website
E31: Comments
A32: 1 | B32: 1 | C32: Clear website address | D32: 1
A33: 2 | B33: 2 | C33: All links working | D33: 1
A34: 3 | B34: 3 | C34: Clear arrangement | D34: 1
A35: 4 | B35: 4 | C35: Search function | D35: 1
A36: 5 | B36: 5 | C36: Integrated guest feedback | D36: 1
A37: 6 | B37: 6 | C37: Typing, spelling and grammar errors | D37: 1
A38: 7 | B38: 7 | C38: Informative, realistic presence with hotel pictures | D38: 1
A39: 8 | B39: 8 | C39: Up-to-date | D39: 1
A40: 9 | B40: 9 | C40: Legal information | D40: 1
A41: 10 | B41: 10 | C41: English translation | D41: 1
A42: 11 | B42: 11 | C42: Contact details (e-mail, telephone, etc.) | D42: 1
A43: 12 | B43: 12 | C43: Online booking on own website | D43: 1
A44: 13 | B44: 13 | C44: Directions / Map | D44: 1
A45: 14 | B45: 14 | C45: General Terms and Conditions or cancellation conditions available | D45: 1
C46: Number of criteria met | D46: =SUM(D32:D45) -> 14
C47: Multiplication of the number of criteria met by | D47: =D697 -> 0.2487562189
C48: Maximum total | D48: =D47*B45 -> 3.482587065
C49: Points total | D49: =D46*D47 -> 3.482587065
C51: Comments
C53: 2. E-mail and mail
C55: Response to your e-mail request, | E55: Comments
A56: 15 | B56: 1 | C56: Within … hours of the request (3*S - 12; 4*S - 8; 5*/5*S - 4) | D56: 1
A57: 16 | B57: 2 | C57: Quality (writing style, choice of words, correct form of address, spelling) | D57: 1
A58: 17 | B58: 3 | C58: Information content (e.g. additional offers) | D58: 1
A59: 18 | B59: 4 | C59: Individual processing | D59: 1
A60: 19 | B60: 5 | C60: In case of an offer: details about the cancellation conditions | D60: 1
C64: Reservation confirmation (e-mail, fax) as as response to your booking | E64: Comments
A65: 20 | B65: 6 | C65: Within … hours of the reservation (3*S - 24; 4*S - 12; 5*/5*S - 8) | D65: 1
A66: 21 | B66: 7 | C66: Quality (writing style, choice of words, correct form of address, spelling) | D66: 1
A67: 22 | B67: 8 | C67: Information content (including the current directions / map) | D67: 1
A68: 23 | B68: 9 | C68: Information about the cancellation conditions | D68: 1
C72: Documents sent by post | E72: Comments
A73: 24 | B73: 10 | C73: Delivery within 3 working days | D73: 1
A74: 25 | B74: 11 | C74: Cover letter | D74: 1
A75: 26 | B75: 12 | C75: Quality (writing style, choice of words, correct form of address, spelling) | D75: 1
A76: 27 | B76: 13 | C76: Information content (e.g. additional offers), | D76: 1
A77: 28 | B77: 14 | C77: Individual processing | D77: 1
A78: 29 | B78: 15 | C78: Corresponding qualitative documents and leaflets | D78: 1
C79: Number of criteria met | D79: =SUM(D56:D78) -> 15
C80: Multiplication of the number of criteria met by | D80: =D697 -> 0.2487562189
C81: Maximum total | D81: =D80*B78 -> 3.731343284
C82: Points total | D82: =D80*D79 -> 3.731343284
C84: Comments
C87: 3. Telephone
E88: Comments
A89: 30 | B89: 1 | C89: Waiting time (3*S - 1 min.; 4*S - 30 seconds; 5*/5*S - 15 seconds) | D89: 1
A90: 31 | B90: 2 | C90: Text or sound recordings during the waiting time | D90: 1
A91: 32 | B91: 3 | C91: Cordiality | D91: 1
A92: 33 | B92: 4 | C92: Clear voice and pronounciation | D92: 1
A93: 34 | B93: 5 | C93: Addressed by name | D93: 1
A94: 35 | B94: 6 | C94: All data compiled (e.g. address, telephone, e-mail request) | D94: 1
A95: 36 | B95: 7 | C95: Professional competency | D95: 1
A96: 37 | B96: 8 | C96: Arrival and departure dates repeated and confirmed | D96: 1
A97: 38 | B97: 9 | C97: Information about categories | D97: 1
A98: 39 | B98: 10 | C98: Information about prices | D98: 1
A99: 40 | B99: 11 | C99: Information about forms of payment | D99: 1
A100: 41 | B100: 12 | C100: Information about services | D100: 1
A101: 42 | B101: 13 | C101: Information about check-in times | D101: 1
A102: 43 | B102: 14 | C102: Information about additional offers | D102: 1
A103: 44 | B103: 15 | C103: Arrival directions | D103: 1
A104: 45 | B104: 16 | C104: Offer of a provisional booking | D104: 1
A105: 46 | B105: 17 | C105: Reference to the cancellation conditions | D105: 1
A106: 47 | B106: 18 | C106: Friendly goodbye and thanks | D106: 1
C107: Number of criteria met | D107: =SUM(D89:D106) -> 18
C108: Multiplication of the number of criteria met by | D108: =D697 -> 0.2487562189
C109: Maximum total | D109: =D108*B106 -> 4.47761194
C110: Points total | D110: =D108*D107 -> 4.47761194
C112: Comments
C115: 4. Arrival and outdoor facilities
E116: Comments
A117: 48 | B117: 1 | C117: Easy to find (e.g. signposted) | D117: 1
A118: 49 | B118: 2 | C118: Access options | D118: 1
A119: 50 | B119: 3 | C119: Parking spaces | D119: 1
A120: 51 | B120: 4 | C120: Garage parking spaces | D120: 1
A121: 52 | B121: 5 | C121: Lighting | D121: 1
A122: 53 | B122: 6 | C122: Luggage service | D122: 1
A123: 54 | B123: 7 | C123: Easy orientation | D123: 1
A124: 55 | B124: 8 | C124: Cleanliness and condition | D124: 1
A125: 56 | B125: 9 | C125: Parking service (e.g. doorman, valet) | D125: 1
C126: Number of criteria met | D126: =SUM(D117:D125) -> 9
C127: Multiplication of the number of criteria met by | D127: =D697 -> 0.2487562189
C128: Maximum total | D128: =D127*B125 -> 2.23880597
C129: Points total | D129: =D127*D126 -> 2.23880597
C131: Comments
C134: 5. Check-in
C136: Reception | E136: Comments
A137: 57 | B137: 1 | C137: Room climate (odour) | D137: 1
A138: 58 | B138: 2 | C138: Room temperature | D138: 1
A139: 59 | B139: 3 | C139: Sufficient lighting | D139: 1
A140: 60 | B140: 4 | C140: Ambience/atmosphere | D140: 1
A141: 61 | B141: 5 | C141: Furniture of an appropriate quality | D141: 1
A142: 62 | B142: 6 | C142: Clean and tidy | D142: 1
A143: 63 | B143: 7 | C143: Matching decorations | D143: 1
A144: 64 | B144: 8 | C144: Generous seating area for guests | D144: 1
A145: 65 | B145: 9 | C145: Appearance of the check-in area (front office - clean and tidy) | D145: 1
C149: Front office staff | E149: Comments
A150: 66 | B150: 10 | C150: Attendance | D150: 1
A151: 67 | B151: 11 | C151: Greeting (e.g. welcome drink) | D151: 1
A152: 68 | B152: 12 | C152: Cordiality and friendliness | D152: 1
A153: 69 | B153: 13 | C153: Appearance of the employees (e.g. uniform, name tag) | D153: 1
A154: 70 | B154: 14 | C154: Professional competency | D154: 1
A155: 71 | B155: 15 | C155: Knowledge of foreign languages | D155: 1
A156: 72 | B156: 16 | C156: Attentiveness | D156: 1
A157: 73 | B157: 17 | C157: Attention to detail | D157: 1
A158: 74 | B158: 18 | C158: Efficiency (speed and flexibility) | D158: 1
A159: 75 | B159: 19 | C159: Readiness to help | D159: 1
A160: 76 | B160: 20 | C160: Clear, easy to understand pronounciation | D160: 1
A161: 77 | B161: 21 | C161: Guest addressed by name | D161: 1
A162: 78 | B162: 22 | C162: Pre-prepared registration form | D162: 1
A163: 79 | B163: 23 | C163: Luggage service offered | D163: 1
A164: 80 | B164: 24 | C164: Offer of escorting to the room | D164: 1
A165: 81 | B165: 25 | C165: General site information offered or provided | D165: 1
A166: 82 | B166: 26 | C166: Pleasant stay wished | D166: 1
C170: Escort to the room | E170: Comments
A171: 83 | B171: 27 | C171: Appearance of the employee | D171: 1
A172: 84 | B172: 28 | C172: Friendliness, conversation | D172: 1
C176: Room information | E176: Comments
A177: 85 | B177: 29 | C177: Indication of the main switch (for power in the room) | D177: 1
A178: 86 | B178: 30 | C178: Indication of the heating or air-conditioning | D178: 1
A179: 87 | B179: 31 | C179: Telephone (written information sufficient) | D179: 1
A180: 88 | B180: 32 | C180: Telephone book or numbers (for room service) - written information sufficient | D180: 1
A181: 89 | B181: 33 | C181: Minibar (written information sufficient) | D181: 1
A182: 90 | B182: 34 | C182: Safe (written information sufficient) | D182: 1
A183: 91 | B183: 35 | C183: Laundry service (written information sufficient) | D183: 1
A184: 92 | B184: 36 | C184: Ironing service (written information sufficient) | D184: 1
A185: 93 | B185: 37 | C185: Opening hours of the restaurant and bar (written information sufficient) | D185: 1
A186: 94 | B186: 38 | C186: Breakfast times (written information sufficient) | D186: 1
A187: 95 | B187: 39 | C187: Reception available 24 hours and attended for … hours (3*S - 14; 4*S - 18; 5*/5*S - 24) | D187: 1
C188: Number of criteria met | D188: =SUM(D137:D187) -> 39
C189: Multiplication of the number of criteria met by | D189: =D697 -> 0.2487562189
C190: Maximum total | D190: =D189*B187 -> 9.701492537
C191: Points total | D191: =D189*D188 -> 9.701492537
C193: Comments
C196: 6. Rooms
C198: First impression and general character | E198: Comments
A199: 96 | B199: 1 | C199: Room climate (fresh odour) | D199: 1
A200: 97 | B200: 2 | C200: Pleasant temperature | D200: 1
A201: 98 | B201: 3 | C201: Atmosphere (well-being) | D201: 1
A202: 99 | B202: 4 | C202: Noise level (quiet) | D202: 1
A203: 100 | B203: 5 | C203: Corresponding furniture | D203: 1
A204: 101 | B204: 6 | C204: Cleanliness | D204: 1
A205: 102 | B205: 7 | C205: Welcome letter / card | D205: 1
A206: 103 | B206: 8 | C206: Greeting (e.g. flours, fruit, confectionary ...) | D206: 1
A207: 104 | B207: 9 | C207: Door lock working properly | D207: 1
C211: The bed | E211: Comments
A212: 105 | B212: 10 | C212: Suitable for the hotel standard | D212: 1
A213: 106 | B213: 11 | C213: Quality of the bed sheets is appropriate | D213: 1
A214: 107 | B214: 12 | C214: Mattress/lying comfort | D214: 1
A215: 108 | B215: 13 | C215: Bed sheets suitable for the time of year | D215: 1
A216: 109 | B216: 14 | C216: Additional pillows available on request | D216: 1
A217: 110 | B217: 15 | C217: Additional bed sheets available on request | D217: 1
A218: 111 | B218: 16 | C218: Two pillows per guest | D218: 1
A219: 112 | B219: 17 | C219: Selection of different pillows (e.g. anti-allergy) | D219: 1
C221: Furniture | E221: Comments
A222: 113 | B222: 18 | C222: Quality and condition of the curtains | D222: 1
A223: 114 | B223: 19 | C223: Darkening possible with the curtains | D223: 1
A224: 115 | B224: 20 | C224: Switches and sockets easy to reach | D224: 1
A225: 116 | B225: 21 | C225: Defect-free walls | D225: 1
A226: 117 | B226: 22 | C226: Defect-free lighting | D226: 1
A227: 118 | B227: 23 | C227: Defect-free furniture | D227: 1
A228: 119 | B228: 24 | C228: Suitable number of uniform hangers (no wire hangers) | D228: 1
A229: 120 | B229: 25 | C229: Spacious storage area | D229: 1
A230: 121 | B230: 26 | C230: Spacious hanging area in the wardrobes | D230: 1
C234: Equipment and services | E234: Comments
A235: 122 | B235: 27 | C235: Radio and TV programs properly set | D235: 1
A236: 123 | B236: 28 | C236: List of programs available | D236: 1
A237: 124 | B237: 29 | C237: Current television guide displayed | D237: 1
A238: 125 | B238: 30 | C238: Writing folder with writing utensils | D238: 1
A239: 126 | B239: 31 | C239: Telephone with the option of make internal and external calls | D239: 1
A240: 127 | B240: 32 | C240: Multi-lingual operating instructions for the telephone | D240: 1
A241: 128 | B241: 33 | C241: Writing pad and pencil next to the phone | D241: 1
A242: 129 | B242: 34 | C242: Working modem connection (or equivalent Internet connection available for the guest) | D242: 1
A243: 130 | B243: 35 | C243: Internet connection in the room (wireless or plug-in) | D243: 1
A244: 131 | B244: 36 | C244: PC with internet available in the room on request | D244: 1
A245: 132 | B245: 37 | C245: Proper functioning of all electrical equipment (e.g. lights, TV and hair dryer) | D245: 1
A246: 133 | B246: 38 | C246: Safe in the room | D246: 1
A247: 134 | B247: 39 | C247: Alarm (or an alarm function on the TV or telephone) | D247: 1
A248: 135 | B248: 40 | C248: Alternative alarm service (reliability, friendliness) | D248: 1
A249: 136 | B249: 41 | C249: "Do not disturb/please clean" sign available | D249: 1
A250: 137 | B250: 42 | C250: Condition and up-to-date status of the information folder | D250: 1
A251: 138 | B251: 43 | C251: Safety instructions (e.g. fire protection, emergency escape routes) visible | D251: 1
A252: 139 | B252: 44 | C252: Room prices on display or in the information folder | D252: 1
A253: 140 | B253: 45 | C253: Guest mazagine laid out | D253: 1
A254: 141 | B254: 46 | C254: Newspaper and magazine service | D254: 1
A255: 142 | B255: 47 | C255: Service manual | D255: 1
A256: 143 | B256: 48 | C256: Multi-lingual service manual | D256: 1
A257: 144 | B257: 49 | C257: At least two drinking glasses on coasters (e.g. serviettes) | D257: 1
A258: 145 | B258: 50 | C258: Drinks from room service | D258: 1
A259: 146 | B259: 51 | C259: Food from room service | D259: 1
A260: 147 | B260: 52 | C260: Breakfest menu from room service | D260: 1
A261: 148 | B261: 53 | C261: Laundry service | D261: 1
A262: 149 | B262: 54 | C262: Ironing service | D262: 1
... 354 more rows

Sheet no add-on
C7: Austrian Professional Hotel Association
C11: Questionnaire Mystery Guest check
C18: Working document, 13.10.2010
C24: This is a list of the necessary test criteria for companies which want to carry out a mystery test within the scope of the Austrian hotel classification. The steering commission or the Austrian Professional Hotel Association, respectively, will make the final decision about the company's listing after checking the prerequisites.
C26: positively met criteria | D26: 1
C27: negatively met criteria | D27: 0
C30: 1. Website
E31: Comments
A32: 1 | B32: 1 | C32: Clear website address | D32: 1
A33: 2 | B33: 2 | C33: All links working | D33: 1
A34: 3 | B34: 3 | C34: Clear arrangement | D34: 1
A35: 4 | B35: 4 | C35: Search function | D35: 1
A36: 5 | B36: 5 | C36: Integrated guest feedback | D36: 1
A37: 6 | B37: 6 | C37: Typing, spelling and grammar errors | D37: 1
A38: 7 | B38: 7 | C38: Informative, realistic presence with hotel pictures | D38: 1
A39: 8 | B39: 8 | C39: Up-to-date | D39: 1
A40: 9 | B40: 9 | C40: Legal information | D40: 1
A41: 10 | B41: 10 | C41: English translation | D41: 1
A42: 11 | B42: 11 | C42: Contact details (e-mail, telephone, etc.) | D42: 1
A43: 12 | B43: 12 | C43: Online booking on own website | D43: 1
A44: 13 | B44: 13 | C44: Directions / Map | D44: 1
A45: 14 | B45: 14 | C45: General Terms and Conditions or cancellation conditions available | D45: 1
C46: Number of criteria met | D46: =SUM(D32:D45) -> 14
C47: Multiplication of the number of criteria met by | D47: =D660 -> 0.2638522427
C48: Maximum total | D48: =D47*B45 -> 3.693931398
C49: Points total | D49: =D46*D47 -> 3.693931398
C51: Comments
C53: 2. E-mail and mail
C55: Response to your e-mail request, | E55: Comments
A56: 15 | B56: 1 | C56: Within … hours of the request (3*S - 12; 4*S - 8; 5*/5*S - 4) | D56: 1
A57: 16 | B57: 2 | C57: Quality (writing style, choice of words, correct form of address, spelling) | D57: 1
A58: 17 | B58: 3 | C58: Information content (e.g. additional offers) | D58: 1
A59: 18 | B59: 4 | C59: Individual processing | D59: 1
A60: 19 | B60: 5 | C60: In case of an offer: details about the cancellation conditions | D60: 1
C64: Reservation confirmation (e-mail, fax) as as response to your booking | E64: Comments
A65: 20 | B65: 6 | C65: Within … hours of the reservation (3*S - 24; 4*S - 12; 5*/5*S - 8) | D65: 1
A66: 21 | B66: 7 | C66: Quality (writing style, choice of words, correct form of address, spelling) | D66: 1
A67: 22 | B67: 8 | C67: Information content (including the current directions / map) | D67: 1
A68: 23 | B68: 9 | C68: Information about the cancellation conditions | D68: 1
C72: Documents sent by post | E72: Comments
A73: 24 | B73: 10 | C73: Delivery within 3 working days | D73: 1
A74: 25 | B74: 11 | C74: Cover letter | D74: 1
A75: 26 | B75: 12 | C75: Quality (writing style, choice of words, correct form of address, spelling) | D75: 1
A76: 27 | B76: 13 | C76: Information content (e.g. additional offers), | D76: 1
A77: 28 | B77: 14 | C77: Individual processing | D77: 1
A78: 29 | B78: 15 | C78: Corresponding qualitative documents and leaflets | D78: 1
C79: Number of criteria met | D79: =SUM(D56:D78) -> 15
C80: Multiplication of the number of criteria met by | D80: =D660 -> 0.2638522427
C81: Maximum total | D81: =D80*B78 -> 3.957783641
C82: Points total | D82: =D80*D79 -> 3.957783641
C84: Comments
C87: 3. Telephone
E88: Comments
A89: 30 | B89: 1 | C89: Waiting time (3*S - 1 min.; 4*S - 30 seconds; 5*/5*S - 15 seconds) | D89: 1
A90: 31 | B90: 2 | C90: Text or sound recordings during the waiting time | D90: 1
A91: 32 | B91: 3 | C91: Cordiality | D91: 1
A92: 33 | B92: 4 | C92: Clear voice and pronounciation | D92: 1
A93: 34 | B93: 5 | C93: Addressed by name | D93: 1
A94: 35 | B94: 6 | C94: All data compiled (e.g. address, telephone, e-mail request) | D94: 1
A95: 36 | B95: 7 | C95: Professional competency | D95: 1
A96: 37 | B96: 8 | C96: Arrival and departure dates repeated and confirmed | D96: 1
A97: 38 | B97: 9 | C97: Information about categories | D97: 1
A98: 39 | B98: 10 | C98: Information about prices | D98: 1
A99: 40 | B99: 11 | C99: Information about forms of payment | D99: 1
A100: 41 | B100: 12 | C100: Information about services | D100: 1
A101: 42 | B101: 13 | C101: Information about check-in times | D101: 1
A102: 43 | B102: 14 | C102: Information about additional offers | D102: 1
A103: 44 | B103: 15 | C103: Arrival directions | D103: 1
A104: 45 | B104: 16 | C104: Offer of a provisional booking | D104: 1
A105: 46 | B105: 17 | C105: Reference to the cancellation conditions | D105: 1
A106: 47 | B106: 18 | C106: Friendly goodbye and thanks | D106: 1
C107: Number of criteria met | D107: =SUM(D89:D106) -> 18
C108: Multiplication of the number of criteria met by | D108: =D660 -> 0.2638522427
C109: Maximum total | D109: =D108*B106 -> 4.749340369
C110: Points total | D110: =D108*D107 -> 4.749340369
C112: Comments
C115: 4. Arrival and outdoor facilities
E116: Comments
A117: 48 | B117: 1 | C117: Easy to find (e.g. signposted) | D117: 1
A118: 49 | B118: 2 | C118: Access options | D118: 1
A119: 50 | B119: 3 | C119: Parking spaces | D119: 1
A120: 51 | B120: 4 | C120: Garage parking spaces | D120: 1
A121: 52 | B121: 5 | C121: Lighting | D121: 1
A122: 53 | B122: 6 | C122: Luggage service | D122: 1
A123: 54 | B123: 7 | C123: Easy orientation | D123: 1
A124: 55 | B124: 8 | C124: Cleanliness and condition | D124: 1
A125: 56 | B125: 9 | C125: Parking service (e.g. doorman, valet) | D125: 1
C126: Number of criteria met | D126: =SUM(D117:D125) -> 9
C127: Multiplication of the number of criteria met by | D127: =D660 -> 0.2638522427
C128: Maximum total | D128: =D127*B125 -> 2.374670185
C129: Points total | D129: =D127*D126 -> 2.374670185
C131: Comments
C134: 5. Check-in
C136: Reception | E136: Comments
A137: 57 | B137: 1 | C137: Room climate (odour) | D137: 1
A138: 58 | B138: 2 | C138: Room temperature | D138: 1
A139: 59 | B139: 3 | C139: Sufficient lighting | D139: 1
A140: 60 | B140: 4 | C140: Ambience/atmosphere | D140: 1
A141: 61 | B141: 5 | C141: Furniture of an appropriate quality | D141: 1
A142: 62 | B142: 6 | C142: Clean and tidy | D142: 1
A143: 63 | B143: 7 | C143: Matching decorations | D143: 1
A144: 64 | B144: 8 | C144: Generous seating area for guests | D144: 1
A145: 65 | B145: 9 | C145: Appearance of the check-in area (front office - clean and tidy) | D145: 1
C149: Front office staff | E149: Comments
A150: 66 | B150: 10 | C150: Attendance | D150: 1
A151: 67 | B151: 11 | C151: Greeting (e.g. welcome drink) | D151: 1
A152: 68 | B152: 12 | C152: Cordiality and friendliness | D152: 1
A153: 69 | B153: 13 | C153: Appearance of the employees (e.g. uniform, name tag) | D153: 1
A154: 70 | B154: 14 | C154: Professional competency | D154: 1
A155: 71 | B155: 15 | C155: Knowledge of foreign languages | D155: 1
A156: 72 | B156: 16 | C156: Attentiveness | D156: 1
A157: 73 | B157: 17 | C157: Attention to detail | D157: 1
A158: 74 | B158: 18 | C158: Efficiency (speed and flexibility) | D158: 1
A159: 75 | B159: 19 | C159: Readiness to help | D159: 1
A160: 76 | B160: 20 | C160: Clear, easy to understand pronounciation | D160: 1
A161: 77 | B161: 21 | C161: Guest addressed by name | D161: 1
A162: 78 | B162: 22 | C162: Pre-prepared registration form | D162: 1
A163: 79 | B163: 23 | C163: Luggage service offered | D163: 1
A164: 80 | B164: 24 | C164: Offer of escorting to the room | D164: 1
A165: 81 | B165: 25 | C165: General site information offered or provided | D165: 1
A166: 82 | B166: 26 | C166: Pleasant stay wished | D166: 1
C170: Escort to the room | E170: Comments
A171: 83 | B171: 27 | C171: Appearance of the employee | D171: 1
A172: 84 | B172: 28 | C172: Friendliness, conversation | D172: 1
C176: Room information | E176: Comments
A177: 85 | B177: 29 | C177: Indication of the main switch (for power in the room) | D177: 1
A178: 86 | B178: 30 | C178: Indication of the heating or air-conditioning | D178: 1
A179: 87 | B179: 31 | C179: Telephone (written information sufficient) | D179: 1
A180: 88 | B180: 32 | C180: Telephone book or numbers (for room service) - written information sufficient | D180: 1
A181: 89 | B181: 33 | C181: Minibar (written information sufficient) | D181: 1
A182: 90 | B182: 34 | C182: Safe (written information sufficient) | D182: 1
A183: 91 | B183: 35 | C183: Laundry service (written information sufficient) | D183: 1
A184: 92 | B184: 36 | C184: Ironing service (written information sufficient) | D184: 1
A185: 93 | B185: 37 | C185: Opening hours of the restaurant and bar (written information sufficient) | D185: 1
A186: 94 | B186: 38 | C186: Breakfast times (written information sufficient) | D186: 1
A187: 95 | B187: 39 | C187: Reception available 24 hours and attended for … hours (3*S - 14; 4*S - 18; 5*/5*S - 24) | D187: 1
C188: Number of criteria met | D188: =SUM(D137:D187) -> 39
C189: Multiplication of the number of criteria met by | D189: =D660 -> 0.2638522427
C190: Maximum total | D190: =D189*B187 -> 10.29023747
C191: Points total | D191: =D189*D188 -> 10.29023747
C193: Comments
C196: 6. Rooms
C198: First impression and general character | E198: Comments
A199: 96 | B199: 1 | C199: Room climate (fresh odour) | D199: 1
A200: 97 | B200: 2 | C200: Pleasant temperature | D200: 1
A201: 98 | B201: 3 | C201: Atmosphere (well-being) | D201: 1
A202: 99 | B202: 4 | C202: Noise level (quiet) | D202: 1
A203: 100 | B203: 5 | C203: Corresponding furniture | D203: 1
A204: 101 | B204: 6 | C204: Cleanliness | D204: 1
A205: 102 | B205: 7 | C205: Welcome letter / card | D205: 1
A206: 103 | B206: 8 | C206: Greeting (e.g. flours, fruit, confectionary ...) | D206: 1
A207: 104 | B207: 9 | C207: Door lock working properly | D207: 1
C211: The bed | E211: Comments
A212: 105 | B212: 10 | C212: Suitable for the hotel standard | D212: 1
A213: 106 | B213: 11 | C213: Quality of the bed sheets is appropriate | D213: 1
A214: 107 | B214: 12 | C214: Mattress/lying comfort | D214: 1
A215: 108 | B215: 13 | C215: Bed sheets suitable for the time of year | D215: 1
A216: 109 | B216: 14 | C216: Additional pillows available on request | D216: 1
A217: 110 | B217: 15 | C217: Additional bed sheets available on request | D217: 1
A218: 111 | B218: 16 | C218: Two pillows per guest | D218: 1
A219: 112 | B219: 17 | C219: Selection of different pillows (e.g. anti-allergy) | D219: 1
C221: Furniture | E221: Comments
A222: 113 | B222: 18 | C222: Quality and condition of the curtains | D222: 1
A223: 114 | B223: 19 | C223: Darkening possible with the curtains | D223: 1
A224: 115 | B224: 20 | C224: Switches and sockets easy to reach | D224: 1
A225: 116 | B225: 21 | C225: Defect-free walls | D225: 1
A226: 117 | B226: 22 | C226: Defect-free lighting | D226: 1
A227: 118 | B227: 23 | C227: Defect-free furniture | D227: 1
A228: 119 | B228: 24 | C228: Suitable number of uniform hangers (no wire hangers) | D228: 1
A229: 120 | B229: 25 | C229: Spacious storage area | D229: 1
A230: 121 | B230: 26 | C230: Spacious hanging area in the wardrobes | D230: 1
C234: Equipment and services | E234: Comments
A235: 122 | B235: 27 | C235: Radio and TV programs properly set | D235: 1
A236: 123 | B236: 28 | C236: List of programs available | D236: 1
A237: 124 | B237: 29 | C237: Current television guide displayed | D237: 1
A238: 125 | B238: 30 | C238: Writing folder with writing utensils | D238: 1
A239: 126 | B239: 31 | C239: Telephone with the option of make internal and external calls | D239: 1
A240: 127 | B240: 32 | C240: Multi-lingual operating instructions for the telephone | D240: 1
A241: 128 | B241: 33 | C241: Writing pad and pencil next to the phone | D241: 1
A242: 129 | B242: 34 | C242: Working modem connection (or equivalent Internet connection available for the guest) | D242: 1
A243: 130 | B243: 35 | C243: Internet connection in the room (wireless or plug-in) | D243: 1
A244: 131 | B244: 36 | C244: PC with internet available in the room on request | D244: 1
A245: 132 | B245: 37 | C245: Proper functioning of all electrical equipment (e.g. lights, TV and hair dryer) | D245: 1
A246: 133 | B246: 38 | C246: Safe in the room | D246: 1
A247: 134 | B247: 39 | C247: Alarm (or an alarm function on the TV or telephone) | D247: 1
A248: 135 | B248: 40 | C248: Alternative alarm service (reliability, friendliness) | D248: 1
A249: 136 | B249: 41 | C249: "Do not disturb/please clean" sign available | D249: 1
A250: 137 | B250: 42 | C250: Condition and up-to-date status of the information folder | D250: 1
A251: 138 | B251: 43 | C251: Safety instructions (e.g. fire protection, emergency escape routes) visible | D251: 1
A252: 139 | B252: 44 | C252: Room prices on display or in the information folder | D252: 1
A253: 140 | B253: 45 | C253: Guest mazagine laid out | D253: 1
A254: 141 | B254: 46 | C254: Newspaper and magazine service | D254: 1
A255: 142 | B255: 47 | C255: Service manual | D255: 1
A256: 143 | B256: 48 | C256: Multi-lingual service manual | D256: 1
A257: 144 | B257: 49 | C257: At least two drinking glasses on coasters (e.g. serviettes) | D257: 1
A258: 145 | B258: 50 | C258: Drinks from room service | D258: 1
A259: 146 | B259: 51 | C259: Food from room service | D259: 1
A260: 147 | B260: 52 | C260: Breakfest menu from room service | D260: 1
A261: 148 | B261: 53 | C261: Laundry service | D261: 1
A262: 149 | B262: 54 | C262: Ironing service | D262: 1
... 323 more rows
